Body Name,Body,Service Level,Expense Type,Expense Code,Narrative,Date,Transaction Number,Amount,Capital and Revenue,Supplier Name,Supplier ID
South Ribble Council,http://statistics.data.gov.uk/doc/local-authority/30UN,Information Services,Peripherals,4241,"Samsung Tab Active 2, as per quote",02/05/2018,0000439345,386.00,Revenue,ACS SYSTEMS UK LTD,00070166
South Ribble Council,http://statistics.data.gov.uk/doc/local-authority/30UN,Development Enterprise & Comm Mgnt,Other Misc,485A,Lime green glow in the dark - Printed white & red  Size � Youths (180mm x 12mm x 2mm) Text � in white with red heart I ,04/05/2018,0000439573,444.00,Revenue,AINSWORTH & PARKINSON,130107
South Ribble Council,http://statistics.data.gov.uk/doc/local-authority/30UN,Development Enterprise & Comm Mgnt,Other Misc,4851,Worden Events Flyer/poster to promote FUN WITH FLAGS  Artwork and Proofs BUDGET 170  Allocation for purchase of stock,04/05/2018,0000439574,385.00,Revenue,AINSWORTH & PARKINSON,130107
South Ribble Council,http://statistics.data.gov.uk/doc/local-authority/30UN,Development Enterprise & Comm Mgnt,Other Misc,4851,Artwork and Proofs  Allocation for purchase of stock images   Print  A5 leaflet printed full colour throughout on 150 silk. Qty 20,23/05/2018,0000439848,630.00,Revenue,AINSWORTH & PARKINSON,130107
South Ribble Council,http://statistics.data.gov.uk/doc/local-authority/30UN,Revenues Plus,Financial,4811,post office trans,04/05/2018,0000439516,992.56,Revenue,ALLPAY LTD,00122276
South Ribble Council,http://statistics.data.gov.uk/doc/local-authority/30UN,Revenues Plus,Financial,4811,pay point,04/05/2018,0000439516,159.67,Revenue,ALLPAY LTD,00122276
South Ribble Council,http://statistics.data.gov.uk/doc/local-authority/30UN,Revenues Plus,Financial,4811,webconn,04/05/2018,0000439516,47.72,Revenue,ALLPAY LTD,00122276
South Ribble Council,http://statistics.data.gov.uk/doc/local-authority/30UN,Property Services,Rep & Maint Premises,2020,2018 / 2019 annual metering charge for the civic centre,04/05/2018,0000439427,432.00,Revenue,AMEY Metering Ltd,131991
South Ribble Council,http://statistics.data.gov.uk/doc/local-authority/30UN,Housing,Cap Grant- Improve Grants,C570,"DFG WORKS TO BATHROOM ATADDRESS REDACTED AS PER YOUR QUOTE COST 4343.94",04/05/2018,0000439581,"4,763.94",Revenue,APG DOMESTIC SERVICES,00061463
South Ribble Council,http://statistics.data.gov.uk/doc/local-authority/30UN,Information Services,Office Machines Maintenance,4026,HiPath 4000 - switchboard annual maintenance & support 16/05/18 - 15/05/19,02/05/2018,0000439487,"9,477.36",Revenue,ATOS IT Services UK Ltd Re:unify Ent Comm Ltd,132380
South Ribble Council,http://statistics.data.gov.uk/doc/local-authority/30UN,Property Services,External Contractors Charges,4570,Arrange with NAME REDACTED to install some electrical sockets as part of the works being done at Moss Side to incorporate,09/05/2018,0000439597,922.00,Revenue,BELEC ELECTRICAL LTD,130290
South Ribble Council,http://statistics.data.gov.uk/doc/local-authority/30UN,Property Services,Rep & Maint Premises,2020,Annual Contract 2018/2019 Electrical Testing and Fan Convector Maintenance at all  Sports Pavilions,31/05/2018,0000439923,309.35,Revenue,BELEC ELECTRICAL LTD,130290
South Ribble Council,http://statistics.data.gov.uk/doc/local-authority/30UN,Property Services,Rep & Maint Premises,2020,To hire de-humidifiers for the old council offices Station Road Bamber Bridge as per quotation dated 1st May 2018,31/05/2018,0000439924,"1,188.50",Revenue,BELEC ELECTRICAL LTD,130290
South Ribble Council,http://statistics.data.gov.uk/doc/local-authority/30UN,Property Services,Rep & Maint Premises,2020,Annual Contract 2018/2019 Electrical Testing and Fan Convector Maintenance at all  Sports Pavilions,31/05/2018,0000439925,"1,687.35",Revenue,BELEC ELECTRICAL LTD,130290
South Ribble Council,http://statistics.data.gov.uk/doc/local-authority/30UN,Shared Financial Services,Balance Sheet,0030,Cheque Refund against 601889921 less 71.74,11/05/2018,0000439653,415.37,Revenue,BRITISH GAS BUSINESS,00102458
South Ribble Council,http://statistics.data.gov.uk/doc/local-authority/30UN,Neighbourhood Admin & Support,Materials General,4040,40LT HERCULES LITTER BIN (BLUE) - BX45 2556-40,30/05/2018,0000439816,"2,519.82",Revenue,BROXAP LTD,00028736
South Ribble Council,http://statistics.data.gov.uk/doc/local-authority/30UN,Neighbourhood Admin & Support,Materials General,4040,DERBY SLIMLINE LITTER BIN WITH ASHTRAY (BLUE) - BX45 2596,30/05/2018,0000439816,"2,760.00",Revenue,BROXAP LTD,00028736
South Ribble Council,http://statistics.data.gov.uk/doc/local-authority/30UN,Neighbourhood Admin & Support,Grounds Maint Cntrctrs Chgs,4657,14 x EDINGURGH BOLLARDS 5 X MANCHERSTER BOLLARDS,31/05/2018,0000439895,"2,456.00",Revenue,BROXAP LTD,00028736
South Ribble Council,http://statistics.data.gov.uk/doc/local-authority/30UN,Environmental Health,Operational Furniture & Equip,4010,Subscription renewal from 16.5.2018 for the BRE Excess Cold Calculator.,04/05/2018,0000439465,"1,000.00",Revenue,BUILDING RESEARCH ESTABLISHMENT LTD,131951
South Ribble Council,http://statistics.data.gov.uk/doc/local-authority/30UN,Neighbourhood Admin & Support,Operational Furniture & Equip,4010,MANURE FORK SPARTAN PRO - 747010,16/05/2018,0000439720,41.08,Revenue,Bunzl Greenham,00006169
South Ribble Council,http://statistics.data.gov.uk/doc/local-authority/30UN,Neighbourhood Admin & Support,Operational Furniture & Equip,4010,RAKE - SPRINGBOK (22 tine c/w 54`` handle)SPARTAN PRO - 747007,16/05/2018,0000439720,37.72,Revenue,Bunzl Greenham,00006169
South Ribble Council,http://statistics.data.gov.uk/doc/local-authority/30UN,Neighbourhood Admin & Support,Materials General,4040,CABLE TIE 300mm x 4.8mm (PACK OF 100) - 230061,16/05/2018,0000439720,44.40,Revenue,Bunzl Greenham,00006169
South Ribble Council,http://statistics.data.gov.uk/doc/local-authority/30UN,Neighbourhood Admin & Support,Operational Furniture & Equip,4010,BARRIER NETTING (50M HEAVY DUTY) - 630013,16/05/2018,0000439720,58.00,Revenue,Bunzl Greenham,00006169
South Ribble Council,http://statistics.data.gov.uk/doc/local-authority/30UN,Neighbourhood Admin & Support,Operational Furniture & Equip,4010,WHEELBARROW 3 CU. FT. MERCHANT GALVANISED - 700007,16/05/2018,0000439720,102.88,Revenue,Bunzl Greenham,00006169
South Ribble Council,http://statistics.data.gov.uk/doc/local-authority/30UN,Area 2 - Waste Transport/Eastern & Central Teams,Materials General,4040,HIRE OF REFUSE COLLECTION VEHICLE  26.4.18 FOR 3 WEEKS @ 850.00 PER WEEK OW1177 TO FCC,25/05/2018,0000439673,340.00,Revenue,C P DAVIDSON & SONS LTD,00043122
South Ribble Council,http://statistics.data.gov.uk/doc/local-authority/30UN,Area 2 - Waste Transport/Eastern & Central Teams,Materials General,4040,HIRE OF REFUSE COLLECTION VEHICLE  26.4.18 FOR 3 WEEKS @ 850.00 PER WEEK OW1177 TO FCC,31/05/2018,0000439796,"2,080.00",Revenue,C P DAVIDSON & SONS LTD,00043122
South Ribble Council,http://statistics.data.gov.uk/doc/local-authority/30UN,Revenues Plus,Peripherals,4242,DWP LA Data Sharing Programme: IT work completed to 31.3.18.,23/05/2018,0000439852,"3,778.63",Revenue,CAPITA BUSINESS SERVICES LTD,00117948
South Ribble Council,http://statistics.data.gov.uk/doc/local-authority/30UN,Regeneration,Professional Fees,4510,final 10% of core fee - 4393 Additional 2000 for work associated with variation to brief,18/05/2018,0000439514,"6,393.00",Revenue,CAPITA PROPERTY AND INFRASTRUCTURE LTD,131347
South Ribble Council,http://statistics.data.gov.uk/doc/local-authority/30UN,Environmental Health,Licence Fees,488B,1st qtr apr/jun18,09/05/2018,0000439590,"1,125.00",Revenue,Carr Street Community Centre,130312
South Ribble Council,http://statistics.data.gov.uk/doc/local-authority/30UN,Homelessness,Contributions,4730,"Cotswold House Flat 20�s April block booking, total of 1058.40 + VAT (30 days @ 35.28)",16/05/2018,0000439708,"1,058.40",Revenue,CHORLEY BOROUGH COUNCIL,00017352
South Ribble Council,http://statistics.data.gov.uk/doc/local-authority/30UN,Housing,Balance Sheet,0030,Affordable Housing Commuted Sum Grant Payment.  Payment One of Two,16/05/2018,0000439555,"249,832.20",Revenue,Chorley Community Housing  Adactus Housing grp ltd,132509
South Ribble Council,http://statistics.data.gov.uk/doc/local-authority/30UN,Area 2 - Waste Transport/Eastern & Central Teams,Materials General,4040,COMPRESSOR HEADSET - PJ62UCL - 10388,23/05/2018,0000439752,749.18,Revenue,CICELEY COMMERCIALS LTD,00059381
South Ribble Council,http://statistics.data.gov.uk/doc/local-authority/30UN,HR & Communications,Payroll Suspense,1741,NAME REDACTED Annual Subscription 2018/19,04/05/2018,0000439522,250.00,Revenue,CIIA (CHARTERED INST OF INT AUDITORS),00024934
South Ribble Council,http://statistics.data.gov.uk/doc/local-authority/30UN,Development Enterprise & Comm Mgnt,Other Misc,4851,Audit Committees: Practical Guidance for Local Authorities and Police (2018 Edition) 250 plus VAT,09/05/2018,0000439616,250.00,Revenue,CIPFA BUSINESS LTD,00017187
South Ribble Council,http://statistics.data.gov.uk/doc/local-authority/30UN,Information Services,Peripherals,4248,"EDRMS Licence, Support & Maintenance for period 01/07/18 - 30/06/19",23/05/2018,0000439833,"15,108.98",Revenue,CIVICA UK LTD,00102717
South Ribble Council,http://statistics.data.gov.uk/doc/local-authority/30UN,Information Services,Peripherals,4248,"Annual Licence, Support & Maintenance for Accent Foundation for period 01/07/18 - 30/06/19",23/05/2018,0000439879,"4,710.99",Revenue,CIVICA UK LTD,00102717
South Ribble Council,http://statistics.data.gov.uk/doc/local-authority/30UN,Information Services,Peripherals,4248,"Annual Licence, Support & Maintenance for New Progress for period 01/07/18 - 30/06/19",23/05/2018,0000439880,"4,710.99",Revenue,CIVICA UK LTD,00102717
South Ribble Council,http://statistics.data.gov.uk/doc/local-authority/30UN,Information Services,Peripherals,4248,"Annual Licence, Support & Maintenance for SRBC for period 01/07/18 - 30/06/19",23/05/2018,0000439881,"9,883.91",Revenue,CIVICA UK LTD,00102717
South Ribble Council,http://statistics.data.gov.uk/doc/local-authority/30UN,Information Services,Peripherals,4247,CS21779 White cable 20m,18/05/2018,0000439789,95.60,Revenue,CPC Re: COMBINED PRECISION COMPONENTS PLC,00017954
South Ribble Council,http://statistics.data.gov.uk/doc/local-authority/30UN,Information Services,Peripherals,4247,CS17239 Grey cable 5m,18/05/2018,0000439789,92.80,Revenue,CPC Re: COMBINED PRECISION COMPONENTS PLC,00017954
South Ribble Council,http://statistics.data.gov.uk/doc/local-authority/30UN,Information Services,Peripherals,4247,CS17238 Grey cable 3m,18/05/2018,0000439789,52.20,Revenue,CPC Re: COMBINED PRECISION COMPONENTS PLC,00017954
South Ribble Council,http://statistics.data.gov.uk/doc/local-authority/30UN,Information Services,Peripherals,4247,CS17240 Grey cable 10m,18/05/2018,0000439789,43.65,Revenue,CPC Re: COMBINED PRECISION COMPONENTS PLC,00017954
South Ribble Council,http://statistics.data.gov.uk/doc/local-authority/30UN,Information Services,Peripherals,4247,UPS 12.00,18/05/2018,0000439789,10.75,Revenue,CPC Re: COMBINED PRECISION COMPONENTS PLC,00017954
South Ribble Council,http://statistics.data.gov.uk/doc/local-authority/30UN,Revenues Plus,Postage,4291,Postage for April - June 2018,02/05/2018,0000439428,410.23,Revenue,CRITIQOM,131053
South Ribble Council,http://statistics.data.gov.uk/doc/local-authority/30UN,Revenues Plus,Stationery,4130,Stationery April - June 2018,04/05/2018,0000439569,398.33,Revenue,CRITIQOM,131053
South Ribble Council,http://statistics.data.gov.uk/doc/local-authority/30UN,Revenues Plus,Postage,4291,Postage for April - June 2018,04/05/2018,0000439572,"1,195.78",Revenue,CRITIQOM,131053
South Ribble Council,http://statistics.data.gov.uk/doc/local-authority/30UN,Revenues Plus,Postage,4291,Postage for April - June 2018,18/05/2018,0000439733,398.25,Revenue,CRITIQOM,131053
South Ribble Council,http://statistics.data.gov.uk/doc/local-authority/30UN,Revenues Plus,Postage,4291,Postage for April - June 2018,23/05/2018,0000439845,506.65,Revenue,CRITIQOM,131053
South Ribble Council,http://statistics.data.gov.uk/doc/local-authority/30UN,Revenues Plus,Postage,4291,Postage for April - June 2018,30/05/2018,0000439945,618.89,Revenue,CRITIQOM,131053
South Ribble Council,http://statistics.data.gov.uk/doc/local-authority/30UN,Housing,Cap Expend Other,C750,DFG WORKS TO BATHROOM AT ADDRESS REDACTED AS PER YOUR QUOTECOST 3860.00,04/05/2018,0000439393,"3,860.00",Revenue,Croston Plumbing & Heating Ltd,131545
South Ribble Council,http://statistics.data.gov.uk/doc/local-authority/30UN,HR & Communications,Balance Sheet,0030,BIKE - CYCLE TO WORK SCHEME - NAME REDACTED,16/05/2018,0000439685,416.67,Revenue,CYCLESCHEME CO  UK,130237
South Ribble Council,http://statistics.data.gov.uk/doc/local-authority/30UN,HR & Communications,Balance Sheet,0030,BIKE - CYCLE TO WORK SCHEME - NAME REDACTED,16/05/2018,0000439686,416.67,Revenue,CYCLESCHEME CO  UK,130237
South Ribble Council,http://statistics.data.gov.uk/doc/local-authority/30UN,HR & Communications,Balance Sheet,0030,Cycle to Work Scheme - NAME REDACTED,31/05/2018,0000439992,833.33,Revenue,CYCLESCHEME CO  UK,130237
South Ribble Council,http://statistics.data.gov.uk/doc/local-authority/30UN,Property Services,Rep & Maint Premises,2020,Annual Contract for maintenance of 1 x  McSmart 240cr Industrial Water Chiller  and 1 x McQuay Air Handling Unit  as per  Sche,11/05/2018,0000439630,525.00,Revenue,DAIKIN APPLIED SERVICE,130324
South Ribble Council,http://statistics.data.gov.uk/doc/local-authority/30UN,Information Services,Peripherals,4245,Annual purchase order for Disaster Recovery Services for period 01/04/18 - 31/03/19,02/05/2018,0000439481,"2,597.38",Revenue,DAISY IT CONTINUITY and RESILIENCE SERVICES LTD,131708
South Ribble Council,http://statistics.data.gov.uk/doc/local-authority/30UN,Area 2 - Waste Transport/Eastern & Central Teams,Materials General,4040,BRAKE CHAMBER - JFC10261 - VK09AHJ - TH,16/05/2018,0000439305,484.90,Revenue,DENNIS EAGLE LTD,00019774
South Ribble Council,http://statistics.data.gov.uk/doc/local-authority/30UN,Area 2 - Waste Transport/Eastern & Central Teams,Cap Vehicles,C440,26 Tonne REFUSE VEHICLE,18/05/2018,0000439779,"149,970.00",Revenue,DENNIS EAGLE LTD,00019774
South Ribble Council,http://statistics.data.gov.uk/doc/local-authority/30UN,Area 2 - Waste Transport/Eastern & Central Teams,Materials General,4040,SUSPENSION LINKS - VO65KPX - JFC10433,31/05/2018,0000440001,270.61,Revenue,DENNIS EAGLE LTD,00019774
South Ribble Council,http://statistics.data.gov.uk/doc/local-authority/30UN,Property Services,Rep & Maint Fixed Plant,2035,"2018 / 2019 contract for fire alarm service at the Civic Centre, Leyland",16/05/2018,0000439675,400.00,Revenue,DES Electrical Services Ltd,131437
South Ribble Council,http://statistics.data.gov.uk/doc/local-authority/30UN,Property Services,Rep & Maint Fixed Plant,2035,2018 / 2019 contract for fire alarm service at Leyland Market,16/05/2018,0000439675,200.00,Revenue,DES Electrical Services Ltd,131437
South Ribble Council,http://statistics.data.gov.uk/doc/local-authority/30UN,Property Services,Rep & Maint Fixed Plant,2035,2018 / 2019 contract for fire alarm service at Moss Side Depot,16/05/2018,0000439675,300.00,Revenue,DES Electrical Services Ltd,131437
South Ribble Council,http://statistics.data.gov.uk/doc/local-authority/30UN,Property Services,Rep & Maint Fixed Plant,2035,2018 / 2019 contract for fire alarm service at Leyland Museum,16/05/2018,0000439675,160.00,Revenue,DES Electrical Services Ltd,131437
South Ribble Council,http://statistics.data.gov.uk/doc/local-authority/30UN,Property Services,Rep & Maint Fixed Plant,2035,2018 / 2019 contract for fire alarm service at Worden Arts & Craft Centre,16/05/2018,0000439675,200.00,Revenue,DES Electrical Services Ltd,131437
South Ribble Council,http://statistics.data.gov.uk/doc/local-authority/30UN,Property Services,Rep & Maint Fixed Plant,2035,"2018 / 2019 contract for fire alarm service at CAB / Navy club, Towngate, Leyland",16/05/2018,0000439675,200.00,Revenue,DES Electrical Services Ltd,131437
South Ribble Council,http://statistics.data.gov.uk/doc/local-authority/30UN,Property Services,Rep & Maint Premises,2020,2018 / 2019 contract for fire alarm service at Kingsfold community centre,16/05/2018,0000439675,320.00,Revenue,DES Electrical Services Ltd,131437
South Ribble Council,http://statistics.data.gov.uk/doc/local-authority/30UN,Property Services,Rep & Maint Premises,2020,To attend the Civic Centre in order to undertake a disabled access survey and compilation of a report.,25/05/2018,0000439863,541.60,Revenue,Disabled Living (Training & Exhibitions) Ltd,132556
South Ribble Council,http://statistics.data.gov.uk/doc/local-authority/30UN,HR & Communications,Professional Fees,4522,DBS CHECKS - APRIL ONWARDS,04/05/2018,0000439554,290.00,Revenue,DISCLOSURE & BARRING SERVICE (CRB),00061984
South Ribble Council,http://statistics.data.gov.uk/doc/local-authority/30UN,Area 3 - Parks/Leyland East West,Capital Expenditure,C230,"IMPROVEMENT WORK TO WESTERN SIDE OF WITHY GROVE PARK, BAMBER BRIDGE. ADDITIONAL WORKS AND MAT",11/05/2018,0000439478,"22,237.48",Revenue,Dowhigh Ltd,132324
South Ribble Council,http://statistics.data.gov.uk/doc/local-authority/30UN,Neighbourhood Admin & Support,Materials General,4040,BLACK SACKS `KEEP SOUTH RIBBLE TIDY` in white - 18x29x39`` 100g,04/05/2018,0000439490,"2,072.70",Revenue,Durasak Ltd,132141
South Ribble Council,http://statistics.data.gov.uk/doc/local-authority/30UN,Information Services,Peripherals,4260,,16/05/2018,0000439694,"2,542.51",Revenue,EE Ltd,131653
South Ribble Council,http://statistics.data.gov.uk/doc/local-authority/30UN,Information Services,Peripherals,4260,non vat,16/05/2018,0000439694,14.33,Revenue,EE Ltd,131653
South Ribble Council,http://statistics.data.gov.uk/doc/local-authority/30UN,Area 2 - Waste Transport/Eastern & Central Teams,Printing,4127,Green Waste Permit Printing and Distribution 2018 - 19,04/05/2018,0000439529,"3,161.86",Revenue,Euro Print Labels,132447
South Ribble Council,http://statistics.data.gov.uk/doc/local-authority/30UN,Area 2 - Waste Transport/Eastern & Central Teams,Materials General,4040,1 MOTOR - PO11BND - JFC10366,25/05/2018,0000439800,472.85,Revenue,F R SHARROCK LTD,00034539
South Ribble Council,http://statistics.data.gov.uk/doc/local-authority/30UN,Area 2 - Waste Transport/Eastern & Central Teams,Materials General,4040,1 BLADE CARRIER - PO16 HMV - JFC10624 - BO,31/05/2018,0000439996,553.21,Revenue,F R SHARROCK LTD,00034539
South Ribble Council,http://statistics.data.gov.uk/doc/local-authority/30UN,Area 2 - Waste Transport/Eastern & Central Teams,Materials General,4040,"1 CYLINDER - BIN 1137, 24 SOLE PLATES - BIN 1265, 100 SCREWS - BIN 1114 - BO",31/05/2018,0000439996,764.51,Revenue,F R SHARROCK LTD,00034539
South Ribble Council,http://statistics.data.gov.uk/doc/local-authority/30UN,Area 2 - Waste Transport/Eastern & Central Teams,External Contractors Charges,4570,Additional Clinical Waste Collections April 2018,11/05/2018,0000439659,285.12,Revenue,FCC Environment Services (UK) Ltd,131612
South Ribble Council,http://statistics.data.gov.uk/doc/local-authority/30UN,Area 2 - Waste Transport/Eastern & Central Teams,External Contractors Charges,4570,retention,11/05/2018,0000439659,-14.26,Revenue,FCC Environment Services (UK) Ltd,131612
South Ribble Council,http://statistics.data.gov.uk/doc/local-authority/30UN,Area 2 - Waste Transport/Eastern & Central Teams,External Contractors Charges,4570,Additional Bulky Waste Collections April 2018 93 @ 8.46,11/05/2018,0000439660,786.78,Revenue,FCC Environment Services (UK) Ltd,131612
South Ribble Council,http://statistics.data.gov.uk/doc/local-authority/30UN,Area 2 - Waste Transport/Eastern & Central Teams,External Contractors Charges,4570,Additional WEEE Collections April 2018 30 @ 7.91,11/05/2018,0000439660,237.30,Revenue,FCC Environment Services (UK) Ltd,131612
South Ribble Council,http://statistics.data.gov.uk/doc/local-authority/30UN,Area 2 - Waste Transport/Eastern & Central Teams,External Contractors Charges,4570,Additional bulky waste collections March 2018 20 @  8.29,11/05/2018,0000439661,663.20,Revenue,FCC Environment Services (UK) Ltd,131612
South Ribble Council,http://statistics.data.gov.uk/doc/local-authority/30UN,Area 2 - Waste Transport/Eastern & Central Teams,External Contractors Charges,4570,Additional WEEE Collections March 2018 30 @ 7.75,11/05/2018,0000439661,232.50,Revenue,FCC Environment Services (UK) Ltd,131612
South Ribble Council,http://statistics.data.gov.uk/doc/local-authority/30UN,Area 2 - Waste Transport/Eastern & Central Teams,External Contractors Charges,4570,Delivery of full suites of bins to New Properties 2017-18 212 @ 73.35,11/05/2018,0000439662,"15,550.20",Revenue,FCC Environment Services (UK) Ltd,131612
South Ribble Council,http://statistics.data.gov.uk/doc/local-authority/30UN,Area 2 - Waste Transport/Eastern & Central Teams,External Contractors Charges,4570,RESIDUAL WASTE COLLECTIONS APRIL 2018,18/05/2018,0000439778,"41,112.17",Revenue,FCC Environment Services (UK) Ltd,131612
South Ribble Council,http://statistics.data.gov.uk/doc/local-authority/30UN,Area 2 - Waste Transport/Eastern & Central Teams,External Contractors Charges,4570,DRY RECYCLABLE NON TERRACED COLLECTIONS  APRIL 2018,18/05/2018,0000439778,"42,103.20",Revenue,FCC Environment Services (UK) Ltd,131612
South Ribble Council,http://statistics.data.gov.uk/doc/local-authority/30UN,Area 2 - Waste Transport/Eastern & Central Teams,External Contractors Charges,4570,DRY RECYCLABLE TERRACED COLLECTIONS  APRIL 2018,18/05/2018,0000439778,"2,000.00",Revenue,FCC Environment Services (UK) Ltd,131612
South Ribble Council,http://statistics.data.gov.uk/doc/local-authority/30UN,Area 2 - Waste Transport/Eastern & Central Teams,External Contractors Charges,4570,ORGANIC WASTE  COLLECTIONS NON TERRACED APRIL 2018,18/05/2018,0000439778,"29,179.27",Revenue,FCC Environment Services (UK) Ltd,131612
South Ribble Council,http://statistics.data.gov.uk/doc/local-authority/30UN,Area 2 - Waste Transport/Eastern & Central Teams,External Contractors Charges,4570,SCHEDULE 2 COLLECTIONS  APRIL 2018,18/05/2018,0000439778,"1,669.77",Revenue,FCC Environment Services (UK) Ltd,131612
South Ribble Council,http://statistics.data.gov.uk/doc/local-authority/30UN,Area 2 - Waste Transport/Eastern & Central Teams,External Contractors Charges,4570,COMMERCIAL WASTE APRIL 2018,18/05/2018,0000439778,"6,543.68",Revenue,FCC Environment Services (UK) Ltd,131612
South Ribble Council,http://statistics.data.gov.uk/doc/local-authority/30UN,Area 2 - Waste Transport/Eastern & Central Teams,External Contractors Charges,4570,BULKY WASTE COLLECTIONS APRIL 2018,18/05/2018,0000439778,904.42,Revenue,FCC Environment Services (UK) Ltd,131612
South Ribble Council,http://statistics.data.gov.uk/doc/local-authority/30UN,Area 2 - Waste Transport/Eastern & Central Teams,External Contractors Charges,4570,WEEE COLLECTIONS APRIL 2018,18/05/2018,0000439778,338.07,Revenue,FCC Environment Services (UK) Ltd,131612
South Ribble Council,http://statistics.data.gov.uk/doc/local-authority/30UN,Area 2 - Waste Transport/Eastern & Central Teams,External Contractors Charges,4570,CLINICAL WASTE COLLECTION APRIL 2018,18/05/2018,0000439778,575.73,Revenue,FCC Environment Services (UK) Ltd,131612
South Ribble Council,http://statistics.data.gov.uk/doc/local-authority/30UN,Area 2 - Waste Transport/Eastern & Central Teams,External Contractors Charges,4570,REPLACEMENT BINS APRIL 2018,18/05/2018,0000439778,"5,000.00",Revenue,FCC Environment Services (UK) Ltd,131612
South Ribble Council,http://statistics.data.gov.uk/doc/local-authority/30UN,Area 2 - Waste Transport/Eastern & Central Teams,External Contractors Charges,4570,ADDITONAL PROPERTIES APRIL 2018,18/05/2018,0000439778,"4,610.10",Revenue,FCC Environment Services (UK) Ltd,131612
South Ribble Council,http://statistics.data.gov.uk/doc/local-authority/30UN,Area 2 - Waste Transport/Eastern & Central Teams,Balance Sheet,0030,retention refuse,18/05/2018,0000439778,"-2,787.70",Revenue,FCC Environment Services (UK) Ltd,131612
South Ribble Council,http://statistics.data.gov.uk/doc/local-authority/30UN,Area 2 - Waste Transport/Eastern & Central Teams,Balance Sheet,0030,retention recycling,18/05/2018,0000439778,"-3,664.12",Revenue,FCC Environment Services (UK) Ltd,131612
South Ribble Council,http://statistics.data.gov.uk/doc/local-authority/30UN,Neighbourhood Admin & Support,Materials General,4040,FOOTBALL PITCH LINE MARKER PAINT - PITCHMARKER Q2,04/05/2018,0000439512,696.00,Revenue,Fleet Line Markers Limited,131942
South Ribble Council,http://statistics.data.gov.uk/doc/local-authority/30UN,Neighbourhood Admin & Support,Vehicle Running Costs,3132,Fuel w/c 23.04.18,04/05/2018,0000439544,256.49,Revenue,Fuel Card Services,132365
South Ribble Council,http://statistics.data.gov.uk/doc/local-authority/30UN,Area 3 - Parks/Leyland East West,Grounds Maint Cntrctrs Chgs,4657,Ability whirl roundabout spare parts as per quote 306024,31/05/2018,0000439990,929.08,Revenue,G L JONES PLAYGROUNDS LTD,00025551
South Ribble Council,http://statistics.data.gov.uk/doc/local-authority/30UN,Housing,Contributions,4730,Gas servicing for winter warmth scheme 2018/2019,18/05/2018,0000439814,645.00,Revenue,GOS Heating Ltd,131387
South Ribble Council,http://statistics.data.gov.uk/doc/local-authority/30UN,Housing,Contributions,4730,GAS APPLIANCE REPAIRS FOR WINTER WARMTH SCHEME 2018/2019,18/05/2018,0000439815,305.42,Revenue,GOS Heating Ltd,131387
South Ribble Council,http://statistics.data.gov.uk/doc/local-authority/30UN,Property Services,Rep & Maint Fixed Plant,2035,2018 / 2019 annual maintenance contract for the intruder alarm at Leyland market,04/05/2018,0000439441,350.50,Revenue,Grantfen Fire & Security Ltd,131572
South Ribble Council,http://statistics.data.gov.uk/doc/local-authority/30UN,Property Services,Rep & Maint Fixed Plant,2035,2018 / 2019 monitoring of the intruder alarm system at Leyland Market,04/05/2018,0000439441,360.50,Revenue,Grantfen Fire & Security Ltd,131572
South Ribble Council,http://statistics.data.gov.uk/doc/local-authority/30UN,Area 2 - Waste Transport/Eastern & Central Teams,Contract Hire & Lease Costs,3212,HIRE OF MECHANICAL ROAD SWEEPER - ON HIRE 16.4.18 TO 20.4.18 AND 23.4.18 TO 27.4.18 (TO BE DELIVERED FRID,02/05/2018,0000439460,740.00,Revenue,GULLIVERS TRUCK HIRE LTD,130582
South Ribble Council,http://statistics.data.gov.uk/doc/local-authority/30UN,Area 2 - Waste Transport/Eastern & Central Teams,Contract Hire & Lease Costs,3212,HIRE OF MECHANICAL ROAD SWEEPER - ON HIRE 16.4.18 TO 20.4.18 AND 23.4.18 TO 27.4.18 (TO BE DELIVERED FRID,09/05/2018,0000439585,620.00,Revenue,GULLIVERS TRUCK HIRE LTD,130582
South Ribble Council,http://statistics.data.gov.uk/doc/local-authority/30UN,Area 2 - Waste Transport/Eastern & Central Teams,Materials General,4040,VARIOUS FILTERS,02/05/2018,0000439453,298.73,Revenue,H & J SERVICES LTD,00114446
South Ribble Council,http://statistics.data.gov.uk/doc/local-authority/30UN,Area 2 - Waste Transport/Eastern & Central Teams,Materials General,4040,4 SETS DICS PADS - BIN 539 - AW,25/05/2018,0000439889,340.00,Revenue,H & J SERVICES LTD,00114446
South Ribble Council,http://statistics.data.gov.uk/doc/local-authority/30UN,Neighbourhood Admin & Support,Vehicle Running Costs,3132,15000litres diesel @ 99.62ppl,04/05/2018,0000439535,"15,205.50",Revenue,Hall Fuels trading name of WFL (UK) Ltd,00116758
South Ribble Council,http://statistics.data.gov.uk/doc/local-authority/30UN,Neighbourhood Admin & Support,Vehicle Running Costs,3134,2500litres gas oil @53.91ppl,04/05/2018,0000439553,"1,391.50",Revenue,Hall Fuels trading name of WFL (UK) Ltd,00116758
South Ribble Council,http://statistics.data.gov.uk/doc/local-authority/30UN,Neighbourhood Admin & Support,Vehicle Running Costs,3134,2500 litres gas oil @ 58.03ppl,25/05/2018,0000439869,"1,357.69",Revenue,Hall Fuels trading name of WFL (UK) Ltd,00116758
South Ribble Council,http://statistics.data.gov.uk/doc/local-authority/30UN,Neighbourhood Admin & Support,Vehicle Running Costs,3132,15000 litres diesel @ 103.74ppl,25/05/2018,0000439885,"15,524.69",Revenue,Hall Fuels trading name of WFL (UK) Ltd,00116758
South Ribble Council,http://statistics.data.gov.uk/doc/local-authority/30UN,HR & Communications,External Contractors Charges,4575,Catering for: Staff awards & Quiz night Friday 27th April 2018,04/05/2018,0000439564,"1,250.00",Revenue,Hallmark Hotel Preston Leyland,00090117
South Ribble Council,http://statistics.data.gov.uk/doc/local-authority/30UN,Chief Executive`s Management,Other Expenses,463C,"ELT AWAY MORNING ON 14 MAY 2018 FOR 20 ATTENDEES IN THE FLORENCE SUITE INC TEA,COFFEE AND BISCUITS",16/05/2018,0000439760,270.83,Revenue,Hallmark Hotel Preston Leyland,00090117
South Ribble Council,http://statistics.data.gov.uk/doc/local-authority/30UN,Property Services,Rep & Maint Premises,2020,Access Control Addition to the following priority doors as per site survey February 2018 * A10 Staff Double Door � A40 1st Floor,04/05/2018,0000439521,"8,575.49",Revenue,HFX LTD,00023728
South Ribble Council,http://statistics.data.gov.uk/doc/local-authority/30UN,Environmental Health,Licence Fees,488B,1st qtr apr/jun 2018,09/05/2018,0000439591,"1,000.00",Revenue,HIGHER WALTON COMMUNITY CENTRE,00070535
South Ribble Council,http://statistics.data.gov.uk/doc/local-authority/30UN,Property Services,Rep & Maint Premises,2020,"Attend Moss Side Depot to repair the lino flooring to the top of the main stairs, corridor and canteen. Contact NAME REDACTED",25/05/2018,0000439862,391.00,Revenue,HYDE FLOORING CO LTD,00023605
South Ribble Council,http://statistics.data.gov.uk/doc/local-authority/30UN,Democratic Services,Other Misc,4970,ONE PLACE FOR NAME REDACTED AT THE ELECTIONS WORKSHOP AND USER GROUP MEETING (UGM) AT THE PARK,04/05/2018,0000439421,405.00,Revenue,IDOX PLC,00104485
South Ribble Council,http://statistics.data.gov.uk/doc/local-authority/30UN,Information Services,Peripherals,4248,"Eros network licence - Annual support & maintenance and VDF licence with connectivity kit (10 users) - Annual support,01/06/18",18/05/2018,0000439813,"6,736.28",Revenue,IDOX PLC,00104485
South Ribble Council,http://statistics.data.gov.uk/doc/local-authority/30UN,Neighbourhood Admin & Support,Materials General,4040,PERMANENT POTHOLE REPAIR - TUB - Special,25/05/2018,0000439831,309.33,Revenue,INSTARMAC GROUP PLC,00024905
South Ribble Council,http://statistics.data.gov.uk/doc/local-authority/30UN,Area 3 - Parks/Leyland East West,Capital Expenditure,C230,"Q.S COST ESTIMATES FOR REVISED OPTIONS FOR REFURBISHMENT OF THE COACH HOUSE, HURST GRANGE PARK",18/05/2018,0000439332,"3,125.00",Revenue,IWA ARCHITECTS LTD,00120087
South Ribble Council,http://statistics.data.gov.uk/doc/local-authority/30UN,Area 3 - Parks/Leyland East West,Grounds Maint Cntrctrs Chgs,4657,3 tonnes Self Binding Gold Amber Limestone @ 87.00 per tonne  (Collection),11/05/2018,0000439552,276.00,Revenue,J & J ASHCROFT LTD,00087515
South Ribble Council,http://statistics.data.gov.uk/doc/local-authority/30UN,Healthy Communities,Professional Fees,4510," 5 weeks Middleforth Penwortham		1-3pm	2hrs x 5 weeks: 10hours	250.00  Tuesday 24th April  4 weeks Broadoak Penwortham		1-3",23/05/2018,0000439771,700.00,Revenue,Jacqueline Lowe,132083
South Ribble Council,http://statistics.data.gov.uk/doc/local-authority/30UN,HR & Communications,Agency Fees,1121,Work carried out by NAME REDACTED Till end of Contract 2018,02/05/2018,0000439506,"10,319.25",Revenue,Joanne Platt Associates Ltd,132222
South Ribble Council,http://statistics.data.gov.uk/doc/local-authority/30UN,Planning,Advertising,4841,Press notices for planning applications 2018/19,02/05/2018,0000439422,486.00,Revenue,JOHNSTON PUBLISHING (NORTH WEST),00011345
South Ribble Council,http://statistics.data.gov.uk/doc/local-authority/30UN,Planning,Advertising,4841,Press notices for planning applications 2018/19,23/05/2018,0000439820,513.00,Revenue,JOHNSTON PUBLISHING (NORTH WEST),00011345
South Ribble Council,http://statistics.data.gov.uk/doc/local-authority/30UN,Neighbourhood Admin & Support,External Contractors Charges,4570,"Saturday working on Schleswig Way under Stop & Go   475.00 +vat ( 6am Start ) -	Monday � Friday 9.30-15.30 working on ",16/05/2018,0000439677,475.00,Revenue,KAYS TRAFFIC MANAGEMENT LTD,00072342
South Ribble Council,http://statistics.data.gov.uk/doc/local-authority/30UN,Area 1 - Penwortham Western Parishes,External Contractors Charges,4570,By - Pass Mowing April 2018,23/05/2018,0000439834,"2,500.00",Revenue,KAYS TRAFFIC MANAGEMENT LTD,00072342
South Ribble Council,http://statistics.data.gov.uk/doc/local-authority/30UN,Area 1 - Penwortham Western Parishes,External Contractors Charges,4570,By - Pass Traffic Management 23.4.18 - 27.4.18,23/05/2018,0000439836,"4,259.00",Revenue,KAYS TRAFFIC MANAGEMENT LTD,00072342
South Ribble Council,http://statistics.data.gov.uk/doc/local-authority/30UN,Area 1 - Penwortham Western Parishes,External Contractors Charges,4570,By - Pass Traffic Management 16.4.08 - 20.4.08,23/05/2018,0000439837,"4,259.00",Revenue,KAYS TRAFFIC MANAGEMENT LTD,00072342
South Ribble Council,http://statistics.data.gov.uk/doc/local-authority/30UN,Area 3 - Parks/Leyland East West,Capital Expenditure,C230,40 no 160 x 80 x 3000 BROWN SLEEPERS WITH 2 45 DEGREE CUTS PER SLEEPER DELIVERED TO PR26 7QR,23/05/2018,0000439835,"2,359.60",Revenue,Kedel Limited,132493
South Ribble Council,http://statistics.data.gov.uk/doc/local-authority/30UN,HR & Communications,Training Expense-Course Fees,1402,The Enforcement Academy - NAME REDACTED 19th & 26th to 29th June 2018,30/05/2018,0000439912,"1,500.00",Revenue,KEEP BRITAIN TIDY,00115979
South Ribble Council,http://statistics.data.gov.uk/doc/local-authority/30UN,Planning,Consultancy Fees,4541,"Undertake a review of the viability assessment for 07/2018/0334/OUT Land off Langdale Road, Leyland",02/05/2018,0000439475,"1,300.00",Revenue,Keppie Massie,131948
South Ribble Council,http://statistics.data.gov.uk/doc/local-authority/30UN,Neighbourhood Admin & Support,Clothing- Uniforms & Laundry,4410,LADIES NAVY POLO SHIRT SIZE 10 - UC106,04/05/2018,0000439575,12.72,Revenue,KEY ENGINEERING & HYGIENE SUPPLIES LTD,00083658
South Ribble Council,http://statistics.data.gov.uk/doc/local-authority/30UN,Neighbourhood Admin & Support,Clothing- Uniforms & Laundry,4410,LADIES NAVY POLO SHIRT SIZE 12 - UC106,04/05/2018,0000439575,12.72,Revenue,KEY ENGINEERING & HYGIENE SUPPLIES LTD,00083658
South Ribble Council,http://statistics.data.gov.uk/doc/local-authority/30UN,Neighbourhood Admin & Support,Clothing- Uniforms & Laundry,4410,LADIES NAVY POLO SHIRT SIZE 14 - UC106,04/05/2018,0000439575,12.72,Revenue,KEY ENGINEERING & HYGIENE SUPPLIES LTD,00083658
South Ribble Council,http://statistics.data.gov.uk/doc/local-authority/30UN,Neighbourhood Admin & Support,Clothing- Uniforms & Laundry,4410,LADIES NAVY POLO SHIRT SIZE 16 - UC106,04/05/2018,0000439575,12.72,Revenue,KEY ENGINEERING & HYGIENE SUPPLIES LTD,00083658
South Ribble Council,http://statistics.data.gov.uk/doc/local-authority/30UN,Neighbourhood Admin & Support,Clothing- Uniforms & Laundry,4410,HI VIZ VULTURE BALLISTIC TROUSERS (28)  SHORT  YELLOW - 6900,04/05/2018,0000439575,40.68,Revenue,KEY ENGINEERING & HYGIENE SUPPLIES LTD,00083658
South Ribble Council,http://statistics.data.gov.uk/doc/local-authority/30UN,Neighbourhood Admin & Support,Clothing- Uniforms & Laundry,4410,HI VIZ VULTURE BALLISTIC TROUSERS (30)  SHORT YELLOW - 6900,04/05/2018,0000439575,40.68,Revenue,KEY ENGINEERING & HYGIENE SUPPLIES LTD,00083658
South Ribble Council,http://statistics.data.gov.uk/doc/local-authority/30UN,Neighbourhood Admin & Support,Clothing- Uniforms & Laundry,4410,HI VIZ VULTURE BALLISTIC TROUSERS (40)  SHORT  YELLOW,04/05/2018,0000439575,61.02,Revenue,KEY ENGINEERING & HYGIENE SUPPLIES LTD,00083658
South Ribble Council,http://statistics.data.gov.uk/doc/local-authority/30UN,Neighbourhood Admin & Support,Clothing- Uniforms & Laundry,4410,HI VIZ VULTURE BALLISTIC TROUSERS (40) REGULAR  YELLOW - 6900,04/05/2018,0000439575,40.68,Revenue,KEY ENGINEERING & HYGIENE SUPPLIES LTD,00083658
South Ribble Council,http://statistics.data.gov.uk/doc/local-authority/30UN,Neighbourhood Admin & Support,Clothing- Uniforms & Laundry,4410,HI VIZ VULTURE BALLISTIC TROUSERS (42)  SHORT  YELLOW - 6900,04/05/2018,0000439575,61.02,Revenue,KEY ENGINEERING & HYGIENE SUPPLIES LTD,00083658
South Ribble Council,http://statistics.data.gov.uk/doc/local-authority/30UN,Neighbourhood Admin & Support,Clothing- Uniforms & Laundry,4410,HI VIZ VULTURE BALLISTIC TROUSERS (42) REGULAR  YELLOW - 6900,04/05/2018,0000439575,40.68,Revenue,KEY ENGINEERING & HYGIENE SUPPLIES LTD,00083658
South Ribble Council,http://statistics.data.gov.uk/doc/local-authority/30UN,Neighbourhood Admin & Support,Clothing- Uniforms & Laundry,4410,HI VIZ VULTURE BALLISTIC TROUSERS (44)  SHORT YELLOW - 6900,04/05/2018,0000439575,61.02,Revenue,KEY ENGINEERING & HYGIENE SUPPLIES LTD,00083658
South Ribble Council,http://statistics.data.gov.uk/doc/local-authority/30UN,Neighbourhood Admin & Support,Clothing- Uniforms & Laundry,4410,HI VIZ VULTURE BALLISTIC TROUSERS (44) REGULAR  YELLOW - 6900,04/05/2018,0000439575,40.68,Revenue,KEY ENGINEERING & HYGIENE SUPPLIES LTD,00083658
South Ribble Council,http://statistics.data.gov.uk/doc/local-authority/30UN,Neighbourhood Admin & Support,Clothing- Uniforms & Laundry,4410,BLUE JACKETS - LADIES REGATTA BENSON II 3 IN 1 NAVY Size 10 -TRA123,04/05/2018,0000439575,78.26,Revenue,KEY ENGINEERING & HYGIENE SUPPLIES LTD,00083658
South Ribble Council,http://statistics.data.gov.uk/doc/local-authority/30UN,Neighbourhood Admin & Support,Clothing- Uniforms & Laundry,4410,BLUE JACKETS - LADIES REGATTA BENSON II 3 IN 1 NAVY Size 12 - TRA123,04/05/2018,0000439575,78.26,Revenue,KEY ENGINEERING & HYGIENE SUPPLIES LTD,00083658
South Ribble Council,http://statistics.data.gov.uk/doc/local-authority/30UN,Neighbourhood Admin & Support,Clothing- Uniforms & Laundry,4410,BLUE JACKETS - LADIES REGATTA BENSON II 3 IN 1 NAVY Size 14 - TRA123,04/05/2018,0000439575,78.26,Revenue,KEY ENGINEERING & HYGIENE SUPPLIES LTD,00083658
South Ribble Council,http://statistics.data.gov.uk/doc/local-authority/30UN,Neighbourhood Admin & Support,Clothing- Uniforms & Laundry,4410,BLUE JACKETS - LADIES REGATTA BENSON II 3 IN 1 NAVY Size 16 - TRA123,04/05/2018,0000439575,78.26,Revenue,KEY ENGINEERING & HYGIENE SUPPLIES LTD,00083658
South Ribble Council,http://statistics.data.gov.uk/doc/local-authority/30UN,Neighbourhood Admin & Support,Clothing- Uniforms & Laundry,4410,BLUE JACKETS - LADIES REGATTA BENSON II 3 IN 1 NAVY Size 18 - TRA123,04/05/2018,0000439575,78.26,Revenue,KEY ENGINEERING & HYGIENE SUPPLIES LTD,00083658
South Ribble Council,http://statistics.data.gov.uk/doc/local-authority/30UN,Neighbourhood Admin & Support,Clothing- Uniforms & Laundry,4410,FLEECE NAVY - PORTWEST F400 EXTRA LARGE - F400,04/05/2018,0000439575,38.08,Revenue,KEY ENGINEERING & HYGIENE SUPPLIES LTD,00083658
South Ribble Council,http://statistics.data.gov.uk/doc/local-authority/30UN,Neighbourhood Admin & Support,Clothing- Uniforms & Laundry,4410,EAR DEFENDERS EN352-1 SNR28 PORTWEST - PW40,04/05/2018,0000439575,19.20,Revenue,KEY ENGINEERING & HYGIENE SUPPLIES LTD,00083658
South Ribble Council,http://statistics.data.gov.uk/doc/local-authority/30UN,Neighbourhood Admin & Support,Clothing- Uniforms & Laundry,4410,GLOVES - WINTER HV ORANGE GRAB & GRIP PORTWEST A185 SIZE 9 - A185,04/05/2018,0000439575,28.80,Revenue,KEY ENGINEERING & HYGIENE SUPPLIES LTD,00083658
South Ribble Council,http://statistics.data.gov.uk/doc/local-authority/30UN,Environmental Health,Materials General,4041,"Date 	Cat.   Price	Quantity	Cost AF Atom Rat Boxes	AFATOMBLK	17.75	11	195.25 Snap E Rat Traps	SNAP",04/05/2018,0000439439,386.84,Revenue,KILLGERM CHEMICALS LTD,00025894
South Ribble Council,http://statistics.data.gov.uk/doc/local-authority/30UN,Environmental Health,Materials General,4041,"Date 11/04/18	Cat No.	 	quantity	Cost  PX17 microcell pot	PX17MICROPOT  	20	46.8 Neosorexa Gold 25KG	NE",04/05/2018,0000439440,357.06,Revenue,KILLGERM CHEMICALS LTD,00025894
South Ribble Council,http://statistics.data.gov.uk/doc/local-authority/30UN,Building Control,Professional Fees,4510,LABC Service Fee 2018/19,16/05/2018,0000438868,"1,951.92",Revenue,LABC,00119218
South Ribble Council,http://statistics.data.gov.uk/doc/local-authority/30UN,Area 2 - Waste Transport/Eastern & Central Teams,Operational Furniture & Equip,4010,Pump TP55,25/05/2018,0000439896,92.25,Revenue,lancashire Bus and Truck Parts Limited,132511
South Ribble Council,http://statistics.data.gov.uk/doc/local-authority/30UN,Area 2 - Waste Transport/Eastern & Central Teams,Operational Furniture & Equip,4010,Jug JDL 1,25/05/2018,0000439896,10.48,Revenue,lancashire Bus and Truck Parts Limited,132511
South Ribble Council,http://statistics.data.gov.uk/doc/local-authority/30UN,Area 2 - Waste Transport/Eastern & Central Teams,Operational Furniture & Equip,4010,Jug JDL 2,25/05/2018,0000439896,14.80,Revenue,lancashire Bus and Truck Parts Limited,132511
South Ribble Council,http://statistics.data.gov.uk/doc/local-authority/30UN,Area 2 - Waste Transport/Eastern & Central Teams,Operational Furniture & Equip,4010,Jug JDL 5,25/05/2018,0000439896,16.60,Revenue,lancashire Bus and Truck Parts Limited,132511
South Ribble Council,http://statistics.data.gov.uk/doc/local-authority/30UN,Area 2 - Waste Transport/Eastern & Central Teams,Operational Furniture & Equip,4010,Funnel F99200,25/05/2018,0000439896,14.80,Revenue,lancashire Bus and Truck Parts Limited,132511
South Ribble Council,http://statistics.data.gov.uk/doc/local-authority/30UN,Area 2 - Waste Transport/Eastern & Central Teams,Operational Furniture & Equip,4010,Funnel F99240,25/05/2018,0000439896,20.24,Revenue,lancashire Bus and Truck Parts Limited,132511
South Ribble Council,http://statistics.data.gov.uk/doc/local-authority/30UN,Area 2 - Waste Transport/Eastern & Central Teams,Operational Furniture & Equip,4010,Drip Tray DRP 12,25/05/2018,0000439896,515.20,Revenue,lancashire Bus and Truck Parts Limited,132511
South Ribble Council,http://statistics.data.gov.uk/doc/local-authority/30UN,Shared Financial Services,Salaries Superannuation,1161,,22/05/2018,0000439280,"567,500.00",Revenue,LANCASHIRE COUNTY COUNCIL PENSION FUND,130639
South Ribble Council,http://statistics.data.gov.uk/doc/local-authority/30UN,Shared Financial Services,Salaries Superannuation,1161,,22/05/2018,0000439280,"929,800.00",Revenue,LANCASHIRE COUNTY COUNCIL PENSION FUND,130639
South Ribble Council,http://statistics.data.gov.uk/doc/local-authority/30UN,HR & Communications,Other Local Authorities,4531,PAYROLL SERVICES JANUARY - MARCH 2018,02/05/2018,0000439394,"5,623.75",Revenue,LANCS COUNTY COUNCIL,00041645
South Ribble Council,http://statistics.data.gov.uk/doc/local-authority/30UN,Area 1 - Penwortham Western Parishes,Professional Fees,4516,BACK OFFICE PROCESSING JANUARY - MARCH 2018 (Estimated charge),11/05/2018,0000439632,"1,000.00",Revenue,LANCS COUNTY COUNCIL,00041645
South Ribble Council,http://statistics.data.gov.uk/doc/local-authority/30UN,Area 1 - Penwortham Western Parishes,Professional Fees,4516,TEC RECHARGES JANUARY - MARCH 2018 (Estimated Charge),11/05/2018,0000439632,41.45,Revenue,LANCS COUNTY COUNCIL,00041645
South Ribble Council,http://statistics.data.gov.uk/doc/local-authority/30UN,Housing,Cap Grant- Improve Grants,C570,SUPPLY AND INSTALL STAIRLIFT AT ADDRESS REDACTED AS PER YOUR QUOTE OF - 3144.00,11/05/2018,0000439670,"3,144.00",Revenue,LANCS COUNTY COUNCIL,00041645
South Ribble Council,http://statistics.data.gov.uk/doc/local-authority/30UN,Housing,Cap Grant- Improve Grants,C570,SUPPLY AND INSTALL STAIRLIFT AT ADDRESS REDACTED AS PER YOUR QUOTE OF - 2539.00,11/05/2018,0000439671,"2,539.00",Revenue,LANCS COUNTY COUNCIL,00041645
South Ribble Council,http://statistics.data.gov.uk/doc/local-authority/30UN,Shared Financial Services,Contributions,4730,New Homes Bonus Quarter 3 (2017/2018),18/05/2018,0000439748,"241,430.00",Revenue,LANCS COUNTY COUNCIL,00041645
South Ribble Council,http://statistics.data.gov.uk/doc/local-authority/30UN,Shared Financial Services,Contributions,4730,New Homes Bonus Quarter 4 (2017/2018),18/05/2018,0000439748,"241,429.00",Revenue,LANCS COUNTY COUNCIL,00041645
South Ribble Council,http://statistics.data.gov.uk/doc/local-authority/30UN,Shared Financial Services,Contributions,4730,Contribution to City Deal Communications and Marketing Costs.  FAO: NAME REDACTED,18/05/2018,0000439748,"9,000.00",Revenue,LANCS COUNTY COUNCIL,00041645
South Ribble Council,http://statistics.data.gov.uk/doc/local-authority/30UN,Planning,Balance Sheet,0030,"FAO NAME REDACTED Service: Highways/Traffic Management - Improvement Works S106 Dated: 19 December 2001 ",30/05/2018,0000439756,"33,000.00",Revenue,LANCS COUNTY COUNCIL,00041645
South Ribble Council,http://statistics.data.gov.uk/doc/local-authority/30UN,Legal,Other Local Authorities,4530,LAND CHARGES - APRIL 2018,25/05/2018,0000439780,"1,023.00",Revenue,LANCS COUNTY COUNCIL,00041645
South Ribble Council,http://statistics.data.gov.uk/doc/local-authority/30UN,Shared Financial Services,Contributions,4730,New Homes Bonus Qtr. 1 (2018/2019),23/05/2018,0000439844,"246,049.50",Revenue,LANCS COUNTY COUNCIL,00041645
South Ribble Council,http://statistics.data.gov.uk/doc/local-authority/30UN,Housing,Cap Expend Other,C750,DFG WORKS TO LCC FOR CLOSOMAT EQUIPMENT AT ADDRESS REDACTED  AS PER QUOTE SUPPLIED BY LCC,25/05/2018,0000439901,"10,075.00",Revenue,LANCS COUNTY COUNCIL,00041645
South Ribble Council,http://statistics.data.gov.uk/doc/local-authority/30UN,Regeneration,Professional Fees,4510,"Installation of waymarkers and lectern, Preston Junction area",04/05/2018,0000439559,700.00,Revenue,LANCS WILDLIFE TRUST,00027009
South Ribble Council,http://statistics.data.gov.uk/doc/local-authority/30UN,Planning,Printing,4125,Lease Rental for 11.06.18 - 10.06.19,04/05/2018,0000439551,"1,426.25",Revenue,LDF FINANCE No1 LTD,131373
South Ribble Council,http://statistics.data.gov.uk/doc/local-authority/30UN,Neighbourhood Admin & Support,Grounds Maint Cntrctrs Chgs,4657,4 x WEBBING SLINGS,25/05/2018,0000439851,51.08,Revenue,Lifting Gear Uk Ltd,132558
South Ribble Council,http://statistics.data.gov.uk/doc/local-authority/30UN,Neighbourhood Admin & Support,Grounds Maint Cntrctrs Chgs,4657,1 x TAG FOR CHAIN SLING,25/05/2018,0000439851,7.00,Revenue,Lifting Gear Uk Ltd,132558
South Ribble Council,http://statistics.data.gov.uk/doc/local-authority/30UN,Neighbourhood Admin & Support,Grounds Maint Cntrctrs Chgs,4657,1 x PAIR 0.5T 25mm DIA LEWIS PINS,25/05/2018,0000439851,246.00,Revenue,Lifting Gear Uk Ltd,132558
South Ribble Council,http://statistics.data.gov.uk/doc/local-authority/30UN,Planning,Balance Sheet,0030,Community Infrastructure Levy (CIL) Payment for Parish Council re: planning application 07/2015/0825/FUL,23/05/2018,0000439865,"1,004.25",Revenue,LITTLE HOOLE PARISH COUNCIL,00026709
South Ribble Council,http://statistics.data.gov.uk/doc/local-authority/30UN,Customer Contact,Operational Furniture & Equip,4010,For CSE Assessment at South Ribble Borough Council at agreed at 920.00  Any queries to NAME REDACTED ,30/05/2018,0000439943,920.00,Revenue,M ASSESSMENT SERVICES,132193
South Ribble Council,http://statistics.data.gov.uk/doc/local-authority/30UN,Housing,Cap Grant- Improve Grants,C570,DFG WORKS TO BATHROOM AT ADDRESS REDACTED- ORIGINAL ORDER FOR NAME REDACTED BUT REQUEST FROM,11/05/2018,0000439486,"1,300.00",Revenue,MAHONEY CONTRACTORS LTD,131271
South Ribble Council,http://statistics.data.gov.uk/doc/local-authority/30UN,Housing,Cap Grant- Improve Grants,C570,DFG WORKS TO BATHROOM AT ADDRESS REDACTED- ORIGINAL ORDER FOR NAME REDACTED BUT REQUEST FROM,09/05/2018,0000439621,"1,575.00",Revenue,MAHONEY CONTRACTORS LTD,131271
South Ribble Council,http://statistics.data.gov.uk/doc/local-authority/30UN,Democratic Services,Other Expenses,463A,,18/05/2018,0000439754,450.00,Revenue,MAYORS CHARITY ACCOUNT,00028192
South Ribble Council,http://statistics.data.gov.uk/doc/local-authority/30UN,Democratic Services,Members Expenses,4629,,23/05/2018,0000439827,75.00,Revenue,MAYORS CHARITY ACCOUNT,00028192
South Ribble Council,http://statistics.data.gov.uk/doc/local-authority/30UN,Democratic Services,Members Expenses,4629,,23/05/2018,0000439827,103.00,Revenue,MAYORS CHARITY ACCOUNT,00028192
South Ribble Council,http://statistics.data.gov.uk/doc/local-authority/30UN,Democratic Services,Members Expenses,4629,,23/05/2018,0000439827,266.35,Revenue,MAYORS CHARITY ACCOUNT,00028192
South Ribble Council,http://statistics.data.gov.uk/doc/local-authority/30UN,Property Services,Rep & Maint Fixed Plant,2035,Annual Contract for 2018/2019 maintenance and monitoring of  the intruder alarm at ADDRESS REDACTED (Moss Side Depot),04/05/2018,0000439473,540.00,Revenue,MMP FIRE AND SECURITY CENTRE,131168
South Ribble Council,http://statistics.data.gov.uk/doc/local-authority/30UN,Information Services,Capital Expenditure,C234,Committee Management System,18/05/2018,0000439781,"17,000.00",Revenue,Modern Mindset Ltd,132250
South Ribble Council,http://statistics.data.gov.uk/doc/local-authority/30UN,Revenues Plus,Agency Fees,1121,NAME REDACTED April 2018,02/05/2018,0000439407,981.24,Revenue,MORGAN HUNT PUBLIC SECTOR LTD,00120401
South Ribble Council,http://statistics.data.gov.uk/doc/local-authority/30UN,Revenues Plus,Agency Fees,1121,NAME REDACTED April 2018,04/05/2018,0000439568,981.24,Revenue,MORGAN HUNT PUBLIC SECTOR LTD,00120401
South Ribble Council,http://statistics.data.gov.uk/doc/local-authority/30UN,Revenues Plus,Agency Fees,1121,NAME REDACTEE April 2018,18/05/2018,0000439804,981.24,Revenue,MORGAN HUNT PUBLIC SECTOR LTD,00120401
South Ribble Council,http://statistics.data.gov.uk/doc/local-authority/30UN,Revenues Plus,Agency Fees,1121,NAME REDACTED May 2018,23/05/2018,0000439875,775.71,Revenue,MORGAN HUNT PUBLIC SECTOR LTD,00120401
South Ribble Council,http://statistics.data.gov.uk/doc/local-authority/30UN,Revenues Plus,Agency Fees,1121,NAME REDACTED May 2018,30/05/2018,0000439933,981.24,Revenue,MORGAN HUNT PUBLIC SECTOR LTD,00120401
South Ribble Council,http://statistics.data.gov.uk/doc/local-authority/30UN,Area 1 - Penwortham Western Parishes,Professional Fees,4521,PROVISION OF STRAY DOG SERVICE - APRIL 2018,09/05/2018,0000439602,302.20,Revenue,MORNINGSIDE KENNELS,00067755
South Ribble Council,http://statistics.data.gov.uk/doc/local-authority/30UN,Property Services,External Contractors Charges,4575,To supply hot meals @ 7 per head for 55 on 17th May 2018 @ 16.30 to SRBC,23/05/2018,0000439821,385.00,Revenue,MOSS HOUSE FARM,00121808
South Ribble Council,http://statistics.data.gov.uk/doc/local-authority/30UN,Environmental Health,Licence Fees,488B,1st qtr fee apr/jun2018,09/05/2018,0000439592,"1,375.00",Revenue,MOSS SIDE COMMUNITY FORUM,00098724
South Ribble Council,http://statistics.data.gov.uk/doc/local-authority/30UN,Planning,Other Misc,485R,refund planning fees,30/05/2018,0000439910,462.00,Revenue,NAME REDACTED,132570
South Ribble Council,http://statistics.data.gov.uk/doc/local-authority/30UN,Legal,Legal,4821,"PROFESSIONAL ADVICE IN RESPECT OF CLEUD - MOSS HOUSE LANE, MUCH HOOLE",11/05/2018,0000439634,700.00,Revenue,MR ANTHONY GILL,130791
South Ribble Council,http://statistics.data.gov.uk/doc/local-authority/30UN,Legal,Consultancy Fees,4541,"Telephone Consultation Ref: Brindle Road, Bamber Bridge, Lancashire 2018",25/05/2018,0000439891,562.50,Revenue,MR IAN PONTER,131194
South Ribble Council,http://statistics.data.gov.uk/doc/local-authority/30UN,Planning,Other Misc,485R,refund planning app,30/05/2018,0000439911,462.00,Revenue,NAME REDACTED,131686
South Ribble Council,http://statistics.data.gov.uk/doc/local-authority/30UN,Development Enterprise & Comm Mgnt,Other Misc,485R,reinbursiment of a license,04/05/2018,0000439584,275.90,Revenue,NAME REDACTED,132537
South Ribble Council,http://statistics.data.gov.uk/doc/local-authority/30UN,Information Services,Peripherals,4241,"2 x Apple iPad @ 684.00 each, 2 x Smart keyboard @ 149.95 each, plus delivery, as per quote ref. 174795",02/05/2018,0000439284,"1,677.90",Revenue,MYPREMIER LTD,130091
South Ribble Council,http://statistics.data.gov.uk/doc/local-authority/30UN,Area 2 - Waste Transport/Eastern & Central Teams,External Contractors Charges,4570,STEAM CLEAN - JFC10252 - PJ62UCL,16/05/2018,0000439595,65.00,Revenue,NAYLORS TRANSPORT (LEYLAND) ltd,00114828
South Ribble Council,http://statistics.data.gov.uk/doc/local-authority/30UN,Area 2 - Waste Transport/Eastern & Central Teams,External Contractors Charges,4570,STEAM CLEAN - JFC10255 - PJ62UCM,16/05/2018,0000439595,65.00,Revenue,NAYLORS TRANSPORT (LEYLAND) ltd,00114828
South Ribble Council,http://statistics.data.gov.uk/doc/local-authority/30UN,Area 2 - Waste Transport/Eastern & Central Teams,External Contractors Charges,4570,STEAM CLEAN - JFC10257 - VO65KPX,16/05/2018,0000439595,65.00,Revenue,NAYLORS TRANSPORT (LEYLAND) ltd,00114828
South Ribble Council,http://statistics.data.gov.uk/doc/local-authority/30UN,Area 2 - Waste Transport/Eastern & Central Teams,External Contractors Charges,4570,STEAM CLEAN - JFC10260 - VO65KRF,16/05/2018,0000439595,65.00,Revenue,NAYLORS TRANSPORT (LEYLAND) ltd,00114828
South Ribble Council,http://statistics.data.gov.uk/doc/local-authority/30UN,Area 2 - Waste Transport/Eastern & Central Teams,External Contractors Charges,4570,STEAM CLEAN - JFC10262 - VK09AHJ,16/05/2018,0000439595,65.00,Revenue,NAYLORS TRANSPORT (LEYLAND) ltd,00114828
South Ribble Council,http://statistics.data.gov.uk/doc/local-authority/30UN,Area 2 - Waste Transport/Eastern & Central Teams,External Contractors Charges,4570,STEAM CLEAN - JFC10264 - PJ62UCG,16/05/2018,0000439595,65.00,Revenue,NAYLORS TRANSPORT (LEYLAND) ltd,00114828
South Ribble Council,http://statistics.data.gov.uk/doc/local-authority/30UN,Area 2 - Waste Transport/Eastern & Central Teams,External Contractors Charges,4570,STEAM CLEAN - JFC10266 - NX58FJZ,16/05/2018,0000439595,65.00,Revenue,NAYLORS TRANSPORT (LEYLAND) ltd,00114828
South Ribble Council,http://statistics.data.gov.uk/doc/local-authority/30UN,Area 2 - Waste Transport/Eastern & Central Teams,External Contractors Charges,4570,STEAM CLEAN - JFC10268 - VN10DKL,16/05/2018,0000439595,65.00,Revenue,NAYLORS TRANSPORT (LEYLAND) ltd,00114828
South Ribble Council,http://statistics.data.gov.uk/doc/local-authority/30UN,Environmental Health,Operational Furniture & Equip,4010,500 -  MP-1  - MOGO LICENCE PLATE SET (PRINTED & CLEAR) - PRIVATE HIRE - REAR @ 4.98,09/05/2018,0000439285,"2,509.90",Revenue,NEWAUTO LTD T/A MOGO (UK),00081566
South Ribble Council,http://statistics.data.gov.uk/doc/local-authority/30UN,Regeneration,Capital Expenditure,C234,jacks magic and plants,18/05/2018,0000439561,286.15,Revenue,NEWGATE NURSERIES,00069591
South Ribble Council,http://statistics.data.gov.uk/doc/local-authority/30UN,Regeneration,Capital Expenditure,C234,8 small hers & 7 large herbs,18/05/2018,0000439561,21.75,Revenue,NEWGATE NURSERIES,00069591
South Ribble Council,http://statistics.data.gov.uk/doc/local-authority/30UN,Regeneration,Advertising,4842,Purchase of 6 general gardening vouchers,16/05/2018,0000439739,100.00,Revenue,NEWGATE NURSERIES,00069591
South Ribble Council,http://statistics.data.gov.uk/doc/local-authority/30UN,Regeneration,Other Misc,4861,Purchase of 6 x general gardening vouchers for Western Parishes in Bloom,16/05/2018,0000439739,100.00,Revenue,NEWGATE NURSERIES,00069591
South Ribble Council,http://statistics.data.gov.uk/doc/local-authority/30UN,Regeneration,Other Misc,4861,Purchase of 6 x 20 Newgate Nursery Garden Vouchers as prizes as part of Penwortham in Bloom.,16/05/2018,0000439739,100.00,Revenue,NEWGATE NURSERIES,00069591
South Ribble Council,http://statistics.data.gov.uk/doc/local-authority/30UN,HR & Communications,Payroll Suspense,1741,NAME REDACTED Organisation Membership 2018/19,09/05/2018,0000439611,"4,195.05",Revenue,NORTH WEST EMPLOYERS,00029829
South Ribble Council,http://statistics.data.gov.uk/doc/local-authority/30UN,Housing,Subs to Statutory Bodies,4720,FULL MEMBERSHIP TO NORTHERN HOUSING CONSORTIUM  COST 885.00,16/05/2018,0000439409,885.00,Revenue,NORTHERN HOUSING CONSORTIUM,00046747
South Ribble Council,http://statistics.data.gov.uk/doc/local-authority/30UN,Neighbourhood Admin & Support,Materials General,4040,SCHMIDT MINI SWEEPER BRUSHES (SWINGO) - 71107/1,04/05/2018,0000439510,779.20,Revenue,NORTHERN MUNICIPAL SPARES LTD,00117061
South Ribble Council,http://statistics.data.gov.uk/doc/local-authority/30UN,Regeneration,Other Misc,4861,Noticeboards for Giant Veggie Patch 3 x 594mm x 840mm budget external wall-mounted poster case 99 each Carriage 10,16/05/2018,0000439745,307.00,Revenue,Notice Board Company (UK) Ltd T/A NBC Products,132456
South Ribble Council,http://statistics.data.gov.uk/doc/local-authority/30UN,Area 1 - Penwortham Western Parishes,Professional Fees,4514,Deployment of Officers April 2018,11/05/2018,0000439663,"1,447.30",Revenue,NSL LTD,00116868
South Ribble Council,http://statistics.data.gov.uk/doc/local-authority/30UN,Area 1 - Penwortham Western Parishes,Other Misc,4855,Cash Collection and Ring-Go Charges April 2018,11/05/2018,0000439663,402.64,Revenue,NSL LTD,00116868
South Ribble Council,http://statistics.data.gov.uk/doc/local-authority/30UN,Information Services,Peripherals,4247,Annual purchase order for SystemCare Support Service for period 01/04/18 - 31/03/19,16/05/2018,0000439782,"5,616.12",Revenue,NVIRON LTD,00028781
South Ribble Council,http://statistics.data.gov.uk/doc/local-authority/30UN,Area 3 - Parks/Leyland East West,Grounds Maint Cntrctrs Chgs,4657,Worden park footpaths ref- CGT/T-367/375 Rev 1 Scratch out 2 existing areas and lay 50mm 20mm agg binder course and 25mm,18/05/2018,0000439620,"4,995.21",Revenue,O`Callaghan Ltd,132068
South Ribble Council,http://statistics.data.gov.uk/doc/local-authority/30UN,HR & Communications,Training Expense-Course Fees,1408,OSTEOPOROSIS ASSESSMENT SERVICES ON WEDNESDAY 16 MAY 2018,16/05/2018,0000439759,"1,400.00",Revenue,OAS LTD OSTEOPOROSIS ASS SERV LTD,00119412
South Ribble Council,http://statistics.data.gov.uk/doc/local-authority/30UN,Property Services,Rep & Maint Premises,2020,2018 - 2019  Annual Inspection and test of the Height Safety System (Fall Arrest System) at the Civic Centre PR25 1DH ,02/05/2018,0000439392,295.00,Revenue,OMEGA RED GROUP LTD,00021869
South Ribble Council,http://statistics.data.gov.uk/doc/local-authority/30UN,Planning,Agency Fees,1121,NAME REDACTED Consultant 3 months at 46p,02/05/2018,0000439408,"1,702.00",Revenue,Park Avenue Recruitment,132388
South Ribble Council,http://statistics.data.gov.uk/doc/local-authority/30UN,Planning,Agency Fees,1121,NAME REDACTED Consultant 3 months at 46p,11/05/2018,0000439687,"3,208.50",Revenue,Park Avenue Recruitment,132388
South Ribble Council,http://statistics.data.gov.uk/doc/local-authority/30UN,Area 1 - Penwortham Western Parishes,Operational Furniture & Equip,4013,Call out to repair P&D Machine No2 at Ecroyd Street Car Park on 18.4.18 - replace mainboard,02/05/2018,0000439413,900.00,Revenue,PARKEON LTD,00082918
South Ribble Council,http://statistics.data.gov.uk/doc/local-authority/30UN,Area 1 - Penwortham Western Parishes,Operational Furniture & Equip,4013,Call out to repair P&D Machine No 5 at Churchill Way Leyland on 18.4.18 - replaced Printer,02/05/2018,0000439413,455.75,Revenue,PARKEON LTD,00082918
South Ribble Council,http://statistics.data.gov.uk/doc/local-authority/30UN,Area 2 - Waste Transport/Eastern & Central Teams,Operational Furniture & Equip,4010,1 AUTEL MD808P Diagnostic Tool @ 349.00,02/05/2018,0000439479,394.00,Revenue,Parts Alliance Group Ltd T/A BBC Superfactors,132548
South Ribble Council,http://statistics.data.gov.uk/doc/local-authority/30UN,Property Services,Rep & Maint Premises,2020,COMPLIANCE TESTING,23/05/2018,0000439829,"6,995.00",Revenue,Pennington Choices Ltd,132479
South Ribble Council,http://statistics.data.gov.uk/doc/local-authority/30UN,Democratic Services,Members Expenses,4629,"SUPPLY 50 HOT POTS AND 20 BUTTER PIES WITH EXTRAS AS DISCUSSED, TO BE READY TO SERVE AT 8:15 PM",09/05/2018,0000439604,346.50,Revenue,Penningtons Catering Ltd,131684
South Ribble Council,http://statistics.data.gov.uk/doc/local-authority/30UN,Environmental Health,Professional Fees,4522,gov fee,25/05/2018,0000439900,440.00,Revenue,Personnel Checks,132574
South Ribble Council,http://statistics.data.gov.uk/doc/local-authority/30UN,Environmental Health,Professional Fees,4522,amin fee,25/05/2018,0000439900,133.30,Revenue,Personnel Checks,132574
South Ribble Council,http://statistics.data.gov.uk/doc/local-authority/30UN,Environmental Health,Professional Fees,4522,gov fee,25/05/2018,0000439909,660.00,Revenue,Personnel Checks,132574
South Ribble Council,http://statistics.data.gov.uk/doc/local-authority/30UN,Environmental Health,Professional Fees,4522,admin fee,25/05/2018,0000439909,199.95,Revenue,Personnel Checks,132574
South Ribble Council,http://statistics.data.gov.uk/doc/local-authority/30UN,Property Services,Operational Furniture & Equip,4012,2018 / 2019 contract for the provision of sanitary services at the Civic Centre,23/05/2018,0000439794,947.53,Revenue,PHS GROUP PLC,00031309
South Ribble Council,http://statistics.data.gov.uk/doc/local-authority/30UN,Area 2 - Waste Transport/Eastern & Central Teams,Vehicle Running Costs,3137,,16/05/2018,0000439618,250.00,Revenue,POST OFFICE LTD,00031354
South Ribble Council,http://statistics.data.gov.uk/doc/local-authority/30UN,Area 2 - Waste Transport/Eastern & Central Teams,Vehicle Running Costs,3137,,16/05/2018,0000439618,165.00,Revenue,POST OFFICE LTD,00031354
South Ribble Council,http://statistics.data.gov.uk/doc/local-authority/30UN,Area 2 - Waste Transport/Eastern & Central Teams,Vehicle Running Costs,3137,,16/05/2018,0000439618,250.00,Revenue,POST OFFICE LTD,00031354
South Ribble Council,http://statistics.data.gov.uk/doc/local-authority/30UN,Area 2 - Waste Transport/Eastern & Central Teams,Vehicle Running Costs,3137,,16/05/2018,0000439618,250.00,Revenue,POST OFFICE LTD,00031354
South Ribble Council,http://statistics.data.gov.uk/doc/local-authority/30UN,Area 2 - Waste Transport/Eastern & Central Teams,Vehicle Running Costs,3137,,16/05/2018,0000439618,250.00,Revenue,POST OFFICE LTD,00031354
South Ribble Council,http://statistics.data.gov.uk/doc/local-authority/30UN,Area 2 - Waste Transport/Eastern & Central Teams,Vehicle Running Costs,3137,,16/05/2018,0000439618,250.00,Revenue,POST OFFICE LTD,00031354
South Ribble Council,http://statistics.data.gov.uk/doc/local-authority/30UN,Area 2 - Waste Transport/Eastern & Central Teams,Vehicle Running Costs,3137,road tax may,16/05/2018,0000439635,250.00,Revenue,POST OFFICE LTD,00031354
South Ribble Council,http://statistics.data.gov.uk/doc/local-authority/30UN,Area 2 - Waste Transport/Eastern & Central Teams,Vehicle Running Costs,3137,VX18KLC,16/05/2018,0000439741,650.00,Revenue,POST OFFICE LTD,00031354
South Ribble Council,http://statistics.data.gov.uk/doc/local-authority/30UN,Information Services,Stationery,4133,"60,000 sheets Evolution Everyday A4 80gm 2500  sheets  Evolution Everyday A3 80gm 15000 sheets Evolution Business 90gm",09/05/2018,0000439580,423.58,Revenue,PREMIER PAPER GROUP LTD,00022606
South Ribble Council,http://statistics.data.gov.uk/doc/local-authority/30UN,Information Services,Stationery,4133,"60,000 sheets Evolution Everyday 80gm",30/05/2018,0000439919,307.80,Revenue,PREMIER PAPER GROUP LTD,00022606
South Ribble Council,http://statistics.data.gov.uk/doc/local-authority/30UN,Area 2 - Waste Transport/Eastern & Central Teams,Materials General,4040,TYRE REPAIRS - TR186,16/05/2018,0000439638,479.35,Revenue,PRESTON TYRE SPECIALISTS,00109516
South Ribble Council,http://statistics.data.gov.uk/doc/local-authority/30UN,Area 3 - Parks/Leyland East West,Capital Expenditure,C230,1 No pair of lion and unicorn plaques for King George V Playing Field as per quote ref 62266,18/05/2018,0000439507,"2,250.00",Revenue,Priest Stonework & Restoration Limited,132510
South Ribble Council,http://statistics.data.gov.uk/doc/local-authority/30UN,Development Enterprise & Comm Mgnt,Consultancy Fees,4541,Multisite Feasibility Study for Pitch Improvements,18/05/2018,0000439524,"5,655.00",Revenue,Professional Sportsturf Design (NW) Ltd.,131677
South Ribble Council,http://statistics.data.gov.uk/doc/local-authority/30UN,Area 3 - Parks/Leyland East West,Grounds Maint Cntrctrs Chgs,4657,"Spare parts for gyrospire (U833) for plate, fixings & spring - ref 1802.18572 @ 769.85 Delivery @ 76.99",04/05/2018,0000439399,846.84,Revenue,PROLUDIC LTD,00083263
South Ribble Council,http://statistics.data.gov.uk/doc/local-authority/30UN,Information Services,Postage,4292,Franking Funds,02/05/2018,0000439485,"9,000.00",Revenue,Purchase Power,00093923
South Ribble Council,http://statistics.data.gov.uk/doc/local-authority/30UN,Information Services,Postage,4292,Reset  Transaction Fee,02/05/2018,0000439485,90.00,Revenue,Purchase Power,00093923
South Ribble Council,http://statistics.data.gov.uk/doc/local-authority/30UN,Area 2 - Waste Transport/Eastern & Central Teams,External Contractors Charges,4570,SPEC REPAIR (AXLE LOAD INDICATOR/ON BOARD WEIGHING SYSTEM CALIBRATION) - JFC10291 - RV14DTZ,16/05/2018,0000439067,326.00,Revenue,Red Forge Limited,131499
South Ribble Council,http://statistics.data.gov.uk/doc/local-authority/30UN,Property Services,Rep & Maint Premises,2020,Please attend Worden Park - there are a couple of leaks to sort out  Please ring NAME REDACTED who will direct you ,04/05/2018,0000439550,600.00,Revenue,RED ROSE BUILDING MAINTENANCE,00085410
South Ribble Council,http://statistics.data.gov.uk/doc/local-authority/30UN,Property Services,Rep & Maint Premises,2020,materials,04/05/2018,0000439550,175.00,Revenue,RED ROSE BUILDING MAINTENANCE,00085410
South Ribble Council,http://statistics.data.gov.uk/doc/local-authority/30UN,Property Services,Rep & Maint Premises,2020,To supply & fit a new manhole cover to the area near Tardy Gate toilets as per quotation in your e-mail dated 29th April 2018,16/05/2018,0000439669,240.00,Revenue,RED ROSE BUILDING MAINTENANCE,00085410
South Ribble Council,http://statistics.data.gov.uk/doc/local-authority/30UN,Property Services,Rep & Maint Premises,2020,materials,16/05/2018,0000439669,410.00,Revenue,RED ROSE BUILDING MAINTENANCE,00085410
South Ribble Council,http://statistics.data.gov.uk/doc/local-authority/30UN,Environmental Health,Subs to Statutory Bodies,4720,EHL Subs for 2018/19.,23/05/2018,0000439846,250.00,Revenue,Ribble Valley Borough Council,131651
South Ribble Council,http://statistics.data.gov.uk/doc/local-authority/30UN,Information Services,Lease Rental Charges,4036,1/5/18 to 31/7/18,18/05/2018,0000439765,"9,058.01",Revenue,RICOH (UK) LTD,00082976
South Ribble Council,http://statistics.data.gov.uk/doc/local-authority/30UN,Information Services,Lease Rental Charges,4036,1/5/18 to 31/7/18,16/05/2018,0000439770,"1,492.80",Revenue,RICOH (UK) LTD,00082976
South Ribble Council,http://statistics.data.gov.uk/doc/local-authority/30UN,Information Services,Lease Rental Charges,4036,1/5/18 to 31/7/18,30/05/2018,0000439956,535.01,Revenue,RICOH (UK) LTD,00082976
South Ribble Council,http://statistics.data.gov.uk/doc/local-authority/30UN,Neighbourhood Admin & Support,Materials General,4040,1 CONTAINER OF ICADE,25/05/2018,0000439898,40.00,Revenue,RIGBY TAYLOR LTD,00033145
South Ribble Council,http://statistics.data.gov.uk/doc/local-authority/30UN,Neighbourhood Admin & Support,Materials General,4040,2 X FINALE 1LT,25/05/2018,0000439898,310.00,Revenue,RIGBY TAYLOR LTD,00033145
South Ribble Council,http://statistics.data.gov.uk/doc/local-authority/30UN,HR & Communications,Advertising,4848,SHOOTING AND EDITING OF A VIDEO FOR THE STAFF AWARDS.VIDEO TO BE SHOT IN EARLY APRIL,02/05/2018,0000439470,450.00,Revenue,ROLAND TURNER,130386
South Ribble Council,http://statistics.data.gov.uk/doc/local-authority/30UN,Information Services,Postage,4295,,02/05/2018,0000439489,347.27,Revenue,ROYAL MAIL GROUP PLC,00033543
South Ribble Council,http://statistics.data.gov.uk/doc/local-authority/30UN,Information Services,Postage,4295,21/4/18 to 28/4/18,16/05/2018,0000439766,506.35,Revenue,ROYAL MAIL GROUP PLC,00033543
South Ribble Council,http://statistics.data.gov.uk/doc/local-authority/30UN,Area 3 - Parks/Leyland East West,External Contractors Charges,4570,COP LANE/HURST GRANGE PARK ENTRANCE - TREE WORKS,18/05/2018,0000439743,"2,330.00",Revenue,RUSS ASPINALL T/A BEARDWOOD TREE SERVICE,00120443
South Ribble Council,http://statistics.data.gov.uk/doc/local-authority/30UN,Legal,Legal,4821,PROFESSIONAL ADVICE IN RESPECT OF PROPOSED DEVELOPMENT AT GREGSON GREEN,11/05/2018,0000439641,"1,125.00",Revenue,RUTH STOCKLEY,00035936
South Ribble Council,http://statistics.data.gov.uk/doc/local-authority/30UN,Information Services,Professional Fees,4520,Shredding of Confidential Waste 2018/19,02/05/2018,0000439343,343.36,Revenue,SHRED-IT LTD,00109134
South Ribble Council,http://statistics.data.gov.uk/doc/local-authority/30UN,Information Services,Professional Fees,4520,Shredding of Confidential Waste 2018/19,09/05/2018,0000439579,339.66,Revenue,SHRED-IT LTD,00109134
South Ribble Council,http://statistics.data.gov.uk/doc/local-authority/30UN,Information Services,Professional Fees,4520,Shredding of Confidential Waste 2018/19,25/05/2018,0000439867,323.74,Revenue,SHRED-IT LTD,00109134
South Ribble Council,http://statistics.data.gov.uk/doc/local-authority/30UN,Property Services,Advertising,4842,Please supply 5 X Market Banners for NAME REDACTED Leyland Market Manager 48.00  plus vat  and 15.00 for delivery,04/05/2018,0000439484,255.00,Revenue,SIGNCRAFT,130512
South Ribble Council,http://statistics.data.gov.uk/doc/local-authority/30UN,Shared Financial Services,Balance Sheet,0030,Apr-18,04/05/2018,0000439410,752.00,Revenue,SOUTH RIBBLE LABOUR PARTY LOCAL GOVERNM,00120663
South Ribble Council,http://statistics.data.gov.uk/doc/local-authority/30UN,Shared Financial Services,Balance Sheet,0030,deductions,30/05/2018,0000439951,752.00,Revenue,SOUTH RIBBLE LABOUR PARTY LOCAL GOVERNM,00120663
South Ribble Council,http://statistics.data.gov.uk/doc/local-authority/30UN,Regeneration,Other Misc,4851,Furniture and delivery,02/05/2018,0000439469,535.00,Revenue,St Catherines Hospice Trading Ltd,132405
South Ribble Council,http://statistics.data.gov.uk/doc/local-authority/30UN,Regeneration,Other Misc,4851,delivery charge,02/05/2018,0000439469,8.33,Revenue,St Catherines Hospice Trading Ltd,132405
South Ribble Council,http://statistics.data.gov.uk/doc/local-authority/30UN,Information Services,Processing-Internal,4212,"AdRem NetCrunch 9.x Premium 50 with 1 Remote Access Licence, Annual Renewal for period 25/05/18 - 24/05/19",16/05/2018,0000439710,455.00,Revenue,STACK DATA SOLUTIONS LTD,130504
South Ribble Council,http://statistics.data.gov.uk/doc/local-authority/30UN,Property Services,Rents,2401,"2018 / 2019 rental fees for Forward industrial estate, Talbot Road, Leyland PR25 2ZJ. Property Ref 2710/081",16/05/2018,0000439706,"16,147.50",Revenue,STONEWELL PROPERTY COMPANY LTD,00118138
South Ribble Council,http://statistics.data.gov.uk/doc/local-authority/30UN,Property Services,Rents,2401,less qtr charge,16/05/2018,0000439706,"-2,850.00",Revenue,STONEWELL PROPERTY COMPANY LTD,00118138
South Ribble Council,http://statistics.data.gov.uk/doc/local-authority/30UN,Property Services,Rep & Maint Premises,2020,Please attend Civic Centre in the Civic Suite the moveable doors are not operating properly -  Contact Caretakers for access,23/05/2018,0000439803,500.00,Revenue,STYLE MOVEABLE PARTITION SPECIALISTS,00119917
South Ribble Council,http://statistics.data.gov.uk/doc/local-authority/30UN,Area 3 - Parks/Leyland East West,Grounds Maint Cntrctrs Chgs,4657,12 x KK3450066 bronze bush @ 50.11 2 x KK2030034 Digger arm receiver & slide bearing @ 231.48 Delivery @ 75.00,18/05/2018,0000439525,"1,170.71",Revenue,SUTCLIFFE PLAY LTD,00034953
South Ribble Council,http://statistics.data.gov.uk/doc/local-authority/30UN,Area 3 - Parks/Leyland East West,External Contractors Charges,4570,1 NO. RD 120M FLEXI ROD 9MM ROD AS PER QUOTE AS PER QUOTE REF. Q/936Y,02/05/2018,0000439432,930.60,Revenue,SWAN TEST & CALIBRATION,00012564
South Ribble Council,http://statistics.data.gov.uk/doc/local-authority/30UN,Area 3 - Parks/Leyland East West,External Contractors Charges,4570,1 NO. RD SENER SONDE,02/05/2018,0000439432,365.00,Revenue,SWAN TEST & CALIBRATION,00012564
South Ribble Council,http://statistics.data.gov.uk/doc/local-authority/30UN,Revenues Plus,Operational Furniture & Equip,4010,NAFN Fees 2018/193,02/05/2018,0000439436,"1,050.00",Revenue,TAMESIDE METROPOLITAN BOROUGH COUNCIL,00037293
South Ribble Council,http://statistics.data.gov.uk/doc/local-authority/30UN,Area 2 - Waste Transport/Eastern & Central Teams,External Contractors Charges,4570,"FEB SERVICING/CALIBRATIONS AS FOLLOWSL8S	ROTARY 6T 4-POST LI 	139.00 JBS	MAJORLIFT 2T JACKING BEAM	",30/05/2018,0000439948,607.00,Revenue,Tecalemit Garage Equipment Company Limited,132135
South Ribble Council,http://statistics.data.gov.uk/doc/local-authority/30UN,Information Services,Peripherals,4245,Bachip & BC/DR Assessment,18/05/2018,0000439793,"2,520.00",Revenue,TechAlign,132535
South Ribble Council,http://statistics.data.gov.uk/doc/local-authority/30UN,Area 2 - Waste Transport/Eastern & Central Teams,External Contractors Charges,4570,"Replace O/S rack & pinon seal, PJ62 UCL, JFC10497. (NAME REJACTED)",25/05/2018,0000439707,484.39,Revenue,TERBERG MATEC UK LTD,00058625
South Ribble Council,http://statistics.data.gov.uk/doc/local-authority/30UN,Area 2 - Waste Transport/Eastern & Central Teams,Materials General,4040,"1 X GREY PANEL (37211 @314.94), 1 X LIGHT SUPPORT BRACKET (18715 @25.00) - JFC10514 - VO65KPZ - TH",25/05/2018,0000439729,350.94,Revenue,TERBERG MATEC UK LTD,00058625
South Ribble Council,http://statistics.data.gov.uk/doc/local-authority/30UN,Area 2 - Waste Transport/Eastern & Central Teams,Materials General,4040,1 X GREY PANEL (37211 @ 314.94) - JFC10480 - VO65KRE - TH,25/05/2018,0000439729,322.19,Revenue,TERBERG MATEC UK LTD,00058625
South Ribble Council,http://statistics.data.gov.uk/doc/local-authority/30UN,Property Services,Rep & Maint Premises,2020,Please attend Leyland market to replace the control board at the car park entrance as per your quotation.,02/05/2018,0000439423,"1,018.00",Revenue,THE AUTOMATIC DOOR COMPANY LTD,00108533
South Ribble Council,http://statistics.data.gov.uk/doc/local-authority/30UN,Regeneration,Professional Fees,4510,Management of infrastructure and project development,04/05/2018,0000439326,800.00,Revenue,The Bee centre,132104
South Ribble Council,http://statistics.data.gov.uk/doc/local-authority/30UN,Regeneration,Training Expense-Course Fees,1403,msp prince 2,04/05/2018,0000439425,"1,674.00",Revenue,THE KNOWLEDGE ACADEMY LTD,130041
South Ribble Council,http://statistics.data.gov.uk/doc/local-authority/30UN,Information Services,Capital Expenditure,C234,"2 x AP8221 @ 449 each and include 8x5 NBS support for 3 years, plus delivery",04/05/2018,0000439534,908.00,Revenue,The Networking People NW (t/a TNP),132331
South Ribble Council,http://statistics.data.gov.uk/doc/local-authority/30UN,Information Services,Capital Expenditure,C234,South Ribble BC Wi-Fi Project,18/05/2018,0000439812,"27,948.00",Revenue,The Networking People NW (t/a TNP),132331
South Ribble Council,http://statistics.data.gov.uk/doc/local-authority/30UN,HR & Communications,Training Expense-Course Fees,1408,5 SESSIONS OF CBT THERAPY FOR NAME REDACTED,02/05/2018,0000439351,300.00,Revenue,THE THERAPY COMPANY,131955
South Ribble Council,http://statistics.data.gov.uk/doc/local-authority/30UN,Area 3 - Parks/Leyland East West,Grounds Maint Cntrctrs Chgs,4657,Annual inspection of timberplay equipment on Worden Park as per quoatation TIMQ12651 @ 450,18/05/2018,0000439730,450.00,Revenue,TIMBERPLAY LTD,00055440
South Ribble Council,http://statistics.data.gov.uk/doc/local-authority/30UN,Information Services,Capital Expenditure,C234,Cabling:  Quote TC9972/17 Market Hall - 1788.00; Quote TC1098/18 Civic Centre - 2274.00 & Quote TC9971/17 Moss Side ,02/05/2018,0000439502,"2,274.00",Revenue,TIS Networks,132417
South Ribble Council,http://statistics.data.gov.uk/doc/local-authority/30UN,Information Services,Capital Expenditure,C234,Cabling:  Quote TC9972/17 Market Hall - 1788.00; Quote TC1098/18 Civic Centre - 2274.00 & Quote TC9971/17 Moss Side ,02/05/2018,0000439503,"1,788.00",Revenue,TIS Networks,132417
South Ribble Council,http://statistics.data.gov.uk/doc/local-authority/30UN,Information Services,Capital Expenditure,C234,Cabling:  Quote TC9972/17 Market Hall - 1788.00; Quote TC1098/18 Civic Centre - 2274.00 & Quote TC9971/17 Moss Side ,11/05/2018,0000439567,"2,606.00",Revenue,TIS Networks,132417
South Ribble Council,http://statistics.data.gov.uk/doc/local-authority/30UN,Information Services,Peripherals,4247,Cabling on 3rd floor as per quote TC1305/18,16/05/2018,0000439690,442.00,Revenue,TIS Networks,132417
South Ribble Council,http://statistics.data.gov.uk/doc/local-authority/30UN,Housing,Contributions,4730,SUPPLY AND INSTALL UPVC DOUBLE GLAZING AS PART OF THE WINTER WARMTH SCHEME COST 20000.00,11/05/2018,0000439651,515.00,Revenue,TRADE WINDOWS & CONSERVATORIES,00119823
South Ribble Council,http://statistics.data.gov.uk/doc/local-authority/30UN,Healthy Communities,Provisions,4311,Stock for coffee vending machines April18,23/05/2018,0000439286,521.25,Revenue,VENDING ENTERPRISES,00101501
South Ribble Council,http://statistics.data.gov.uk/doc/local-authority/30UN,Property Services,Rep & Maint Premises,2020,"2018 / 2019 annual contract for quarterly servicing of 7No water coolers located at the Civic Centre, PR25 1DH",11/05/2018,0000439509,910.00,Revenue,VENDING ENTERPRISES,00101501
South Ribble Council,http://statistics.data.gov.uk/doc/local-authority/30UN,Property Services,Operational Furniture & Equip,4012,2018 / 2019 annual contract for the monthly rental of hot drinks machines at the civic centre including environmental charge.,11/05/2018,0000439509,322.09,Revenue,VENDING ENTERPRISES,00101501
South Ribble Council,http://statistics.data.gov.uk/doc/local-authority/30UN,Property Services,Operational Furniture & Equip,4012,,04/05/2018,0000439526,322.09,Revenue,VENDING ENTERPRISES,00101501
South Ribble Council,http://statistics.data.gov.uk/doc/local-authority/30UN,Property Services,Operational Furniture & Equip,4012,2018 / 2019 annual contract for the monthly rental of hot drinks machines at the civic centre including environmental charge.,31/05/2018,0000439980,322.09,Revenue,VENDING ENTERPRISES,00101501
South Ribble Council,http://statistics.data.gov.uk/doc/local-authority/30UN,Legal,Agency Fees,1121,TEMPORARY SOLICITOR COSTS,09/05/2018,0000439607,976.74,Revenue,VENN GROUP LTD,00092762
South Ribble Council,http://statistics.data.gov.uk/doc/local-authority/30UN,Legal,Agency Fees,1121,TEMPORARY SOLICITOR COSTS,25/05/2018,0000439849,763.95,Revenue,VENN GROUP LTD,00092762
South Ribble Council,http://statistics.data.gov.uk/doc/local-authority/30UN,Legal,Agency Fees,1121,TEMPORARY SOLICITOR COSTS,30/05/2018,0000439921,476.70,Revenue,VENN GROUP LTD,00092762
South Ribble Council,http://statistics.data.gov.uk/doc/local-authority/30UN,Regeneration,Rents,2402,Regeneration Away Day - room hire and catering,18/05/2018,0000439802,375.00,Revenue,Vernon Carus Cricket & Sports Club,132290
South Ribble Council,http://statistics.data.gov.uk/doc/local-authority/30UN,Information Services,Peripherals,4269,"Annual PO for ISDN lines, line rentals & call charges 01/04/18 - 31/03/19",02/05/2018,0000439482,748.75,Revenue,VODAFONE RE:CABLE & WIRELESS UK,130810
South Ribble Council,http://statistics.data.gov.uk/doc/local-authority/30UN,Information Services,Peripherals,4247,Civic Centre Broadband 1GB link,04/05/2018,0000439558,"2,162.66",Revenue,VODAFONE RE:CABLE & WIRELESS UK,130810
South Ribble Council,http://statistics.data.gov.uk/doc/local-authority/30UN,Property Services,Water Charges,2511,122bstation rd 19/12/17 to 3/4/18,04/05/2018,0000439416,"1,005.52",Revenue,WATER PLUS,00029845
South Ribble Council,http://statistics.data.gov.uk/doc/local-authority/30UN,Property Services,Rates,2412,car park hope terrace,11/05/2018,0000439480,"1,790.06",Revenue,WATER PLUS,00029845
South Ribble Council,http://statistics.data.gov.uk/doc/local-authority/30UN,Property Services,Rates,2412,pub conv hope terrace,11/05/2018,0000439480,142.91,Revenue,WATER PLUS,00029845
South Ribble Council,http://statistics.data.gov.uk/doc/local-authority/30UN,Property Services,Rates,2412,car park greenbank,11/05/2018,0000439480,17.98,Revenue,WATER PLUS,00029845
South Ribble Council,http://statistics.data.gov.uk/doc/local-authority/30UN,Property Services,Rates,2412,car park ryefield ave,11/05/2018,0000439480,53.48,Revenue,WATER PLUS,00029845
South Ribble Council,http://statistics.data.gov.uk/doc/local-authority/30UN,Property Services,Rates,2412,museum church rd,11/05/2018,0000439480,142.91,Revenue,WATER PLUS,00029845
South Ribble Council,http://statistics.data.gov.uk/doc/local-authority/30UN,Property Services,Rates,2412,car park church hill,11/05/2018,0000439480,"1,790.06",Revenue,WATER PLUS,00029845
South Ribble Council,http://statistics.data.gov.uk/doc/local-authority/30UN,Property Services,Rates,2412,car park king st,11/05/2018,0000439480,"8,324.56",Revenue,WATER PLUS,00029845
South Ribble Council,http://statistics.data.gov.uk/doc/local-authority/30UN,Property Services,Rates,2412,car park kings court,11/05/2018,0000439480,85.29,Revenue,WATER PLUS,00029845
South Ribble Council,http://statistics.data.gov.uk/doc/local-authority/30UN,Property Services,Rates,2412,car park rear leyland ln,11/05/2018,0000439480,32.27,Revenue,WATER PLUS,00029845
South Ribble Council,http://statistics.data.gov.uk/doc/local-authority/30UN,Property Services,Rates,2412,civic ctr,11/05/2018,0000439480,"15,815.69",Revenue,WATER PLUS,00029845
South Ribble Council,http://statistics.data.gov.uk/doc/local-authority/30UN,Property Services,Rates,2412,car park brandiforth st,11/05/2018,0000439480,11.06,Revenue,WATER PLUS,00029845
South Ribble Council,http://statistics.data.gov.uk/doc/local-authority/30UN,Property Services,Rates,2412,car park cann bridge st,11/05/2018,0000439480,354.98,Revenue,WATER PLUS,00029845
South Ribble Council,http://statistics.data.gov.uk/doc/local-authority/30UN,Property Services,Rates,2412,car park james st,11/05/2018,0000439480,6.92,Revenue,WATER PLUS,00029845
South Ribble Council,http://statistics.data.gov.uk/doc/local-authority/30UN,Property Services,Rates,2412,kingsway car park,11/05/2018,0000439480,60.39,Revenue,WATER PLUS,00029845
South Ribble Council,http://statistics.data.gov.uk/doc/local-authority/30UN,Property Services,Rates,2412,car park school st BB,11/05/2018,0000439480,8.76,Revenue,WATER PLUS,00029845
South Ribble Council,http://statistics.data.gov.uk/doc/local-authority/30UN,Property Services,Rates,2412,car park riverside medical ctr,11/05/2018,0000439480,47.02,Revenue,WATER PLUS,00029845
South Ribble Council,http://statistics.data.gov.uk/doc/local-authority/30UN,Property Services,Rates,2412,withy grove BB,11/05/2018,0000439480,142.91,Revenue,WATER PLUS,00029845
South Ribble Council,http://statistics.data.gov.uk/doc/local-authority/30UN,Property Services,Water Charges,2511,13/2/18 to 5/5/18,16/05/2018,0000439724,"1,991.29",Revenue,WATER PLUS,00029845
South Ribble Council,http://statistics.data.gov.uk/doc/local-authority/30UN,Property Services,Water Charges,2511,23/2/18 to 13/5/18,23/05/2018,0000439808,616.68,Revenue,WATER PLUS,00029845
South Ribble Council,http://statistics.data.gov.uk/doc/local-authority/30UN,Property Services,Water Charges,2511,8/3/18 to 15/5/18,25/05/2018,0000439873,"5,732.55",Revenue,WATER PLUS,00029845
South Ribble Council,http://statistics.data.gov.uk/doc/local-authority/30UN,HR & Communications,Recruitment Expenses,1500,Advertising costs for Executive Assistant to CHEX,16/05/2018,0000439642,299.00,Revenue,Websence Recruit Ltd T/A Fill My Vacancy,132555
South Ribble Council,http://statistics.data.gov.uk/doc/local-authority/30UN,Legal,Legal,4821,PROFESSIONAL SERVICES (STATUTORY PROCEDURES) APRIL ONWARDS,11/05/2018,0000439637,"2,362.50",Revenue,WEIGHTMANS LLP,00120867
South Ribble Council,http://statistics.data.gov.uk/doc/local-authority/30UN,Area 3 - Parks/Leyland East West,External Contractors Charges,4570,"HEDGEROWS ROAD, LEYLAND - SHOUT ABOUT CLEARANCE",23/05/2018,0000439838,"3,500.00",Revenue,WESTFIELD TREE SERVICES LTD,00114226
South Ribble Council,http://statistics.data.gov.uk/doc/local-authority/30UN,Area 3 - Parks/Leyland East West,External Contractors Charges,4570,Lostock View Tree Works,23/05/2018,0000439839,"3,570.00",Revenue,WESTFIELD TREE SERVICES LTD,00114226
South Ribble Council,http://statistics.data.gov.uk/doc/local-authority/30UN,Area 3 - Parks/Leyland East West,Capital Expenditure,C230,"LODGE LANE, FARINGTON - CLEARANCE WORKS",23/05/2018,0000439840,"13,000.00",Revenue,WESTFIELD TREE SERVICES LTD,00114226
South Ribble Council,http://statistics.data.gov.uk/doc/local-authority/30UN,Housing,Cap Grant- Improve Grants,C570,DFG WORKS FOR AS PER QUOTE AT ADDRESS REDACTED COST OF WORK 1657.35,11/05/2018,0000439689,"1,657.35",Revenue,Wright Build Limited,131203
South Ribble Council,http://statistics.data.gov.uk/doc/local-authority/30UN,Development Enterprise & Comm Mgnt,Advertising,4841,"Design and Artwork of Sport and Physical Activity Strategy 1,820.00 + VAT",18/05/2018,0000439667,"1,559.00",Revenue,WRITE ANGLE PR & MARKETING LTD,00095303
South Ribble Council,http://statistics.data.gov.uk/doc/local-authority/30UN,Development Enterprise & Comm Mgnt,Advertising,4842,"Design and artwork �	Development of design concept �	Application of copy and images/graphics to artwork template �	Development",18/05/2018,0000439758,579.00,Revenue,WRITE ANGLE PR & MARKETING LTD,00095303
South Ribble Council,http://statistics.data.gov.uk/doc/local-authority/30UN,Development Enterprise & Comm Mgnt,Sports Dev Expenses,4890,STANDARD CONFERENCE TICKET - YOUTH SPORT TRUST 2018 CONFERENCE  Total Price - 360.00,02/05/2018,0000439325,315.00,Revenue,Youth Sport Trust,132550
